{"text_format":"3","workbook":"xlsx","n_sheets":2,"sheets":["Raspored časova","Lista časova"],"not_rendered":{"defined_names":16},"read":"whole","date_system":"1900"}

{"sheet":"Raspored časova","index":0,"n_rows":56,"n_cols":9,"rows_kept":56,"merged":[[0,1,1,5],[0,8,1,8]]}
[null,"RASPORED ČASOVA",{"$nulls":4},"POČETAK \nRASPOREDA","VREMENSKI \nINTERVAL","Lista časova"]
[{"$nulls":6},"08:00:00","15 MIN"]
[null,"VREME","NEDELJA","PONEDELJAK","UTORAK","SREDA","ČETVRTAK","PETAK","SUBOTA"]
[null,{"$f":"PočetakRasporeda","v":"08:00:00"},{"$f":"IFERROR(INDEX(ListaČasova[],MATCH(SUMPRODUCT((ListaČasova[DAN]=RasporedČasova[[#Headers],[NEDELJA]])*(ROUNDDOWN($B4,10)>=ROUNDDOWN(ListaČasova[VREME POČETKA],10))*($B4<=ListaČasova[VREME ZAVRŠETKA]),ListaČasova[JEDINSTVENI]),ListaČasova[JEDINSTVENI],0),2),0)","v":0},{"$f":"IFERROR(INDEX(ListaČasova[],MATCH(SUMPRODUCT((ListaČasova[DAN]=RasporedČasova[[#Headers],[PONEDELJAK]])*(ROUNDDOWN($B4,10)>=ROUNDDOWN(ListaČasova[VREME POČETKA],10))*($B4<=ListaČasova[VREME ZAVRŠETKA]),ListaČasova[JEDINSTVENI]),ListaČasova[JEDINSTVENI],0),2),0)","v":0},{"$f":"IFERROR(INDEX(ListaČasova[],MATCH(SUMPRODUCT((ListaČasova[DAN]=RasporedČasova[[#Headers],[UTORAK]])*(ROUNDDOWN($B4,10)>=ROUNDDOWN(ListaČasova[VREME POČETKA],10))*($B4<=ListaČasova[VREME ZAVRŠETKA]),ListaČasova[JEDINSTVENI]),ListaČasova[JEDINSTVENI],0),2),0)","v":0},{"$f":"IFERROR(INDEX(ListaČasova[],MATCH(SUMPRODUCT((ListaČasova[DAN]=RasporedČasova[[#Headers],[SREDA]])*(ROUNDDOWN($B4,10)>=ROUNDDOWN(ListaČasova[VREME POČETKA],10))*($B4<=ListaČasova[VREME ZAVRŠETKA]),ListaČasova[JEDINSTVENI]),ListaČasova[JEDINSTVENI],0),2),0)","v":0},{"$f":"IFERROR(INDEX(ListaČasova[],MATCH(SUMPRODUCT((ListaČasova[DAN]=RasporedČasova[[#Headers],[ČETVRTAK]])*(ROUNDDOWN($B4,10)>=ROUNDDOWN(ListaČasova[VREME POČETKA],10))*($B4<=ListaČasova[VREME ZAVRŠETKA]),ListaČasova[JEDINSTVENI]),ListaČasova[JEDINSTVENI],0),2),0)","v":0},{"$f":"IFERROR(INDEX(ListaČasova[],MATCH(SUMPRODUCT((ListaČasova[DAN]=RasporedČasova[[#Headers],[PETAK]])*(ROUNDDOWN($B4,10)>=ROUNDDOWN(ListaČasova[VREME POČETKA],10))*($B4<=ListaČasova[VREME ZAVRŠETKA]),ListaČasova[JEDINSTVENI]),ListaČasova[JEDINSTVENI],0),2),0)","v":0},{"$f":"IFERROR(INDEX(ListaČasova[],MATCH(SUMPRODUCT((ListaČasova[DAN]=RasporedČasova[[#Headers],[SUBOTA]])*(ROUNDDOWN($B4,10)>=ROUNDDOWN(ListaČasova[VREME POČETKA],10))*($B4<=ListaČasova[VREME ZAVRŠETKA]),ListaČasova[JEDINSTVENI]),ListaČasova[JEDINSTVENI],0),2),0)","v":0}]
[null,{"$f":"B4+Inkrement","v":"08:15:00"},{"$f":"IFERROR(INDEX(ListaČasova[],MATCH(SUMPRODUCT((ListaČasova[DAN]=RasporedČasova[[#Headers],[NEDELJA]])*(ROUNDDOWN($B5,10)>=ROUNDDOWN(ListaČasova[VREME POČETKA],10))*($B5<=ListaČasova[VREME ZAVRŠETKA]),ListaČasova[JEDINSTVENI]),ListaČasova[JEDINSTVENI],0),2),0)","v":0},{"$f":"IFERROR(INDEX(ListaČasova[],MATCH(SUMPRODUCT((ListaČasova[DAN]=RasporedČasova[[#Headers],[PONEDELJAK]])*(ROUNDDOWN($B5,10)>=ROUNDDOWN(ListaČasova[VREME POČETKA],10))*($B5<=ListaČasova[VREME ZAVRŠETKA]),ListaČasova[JEDINSTVENI]),ListaČasova[JEDINSTVENI],0),2),0)","v":"MT-113"},{"$f":"IFERROR(INDEX(ListaČasova[],MATCH(SUMPRODUCT((ListaČasova[DAN]=RasporedČasova[[#Headers],[UTORAK]])*(ROUNDDOWN($B5,10)>=ROUNDDOWN(ListaČasova[VREME POČETKA],10))*($B5<=ListaČasova[VREME ZAVRŠETKA]),ListaČasova[JEDINSTVENI]),ListaČasova[JEDINSTVENI],0),2),0)","v":0},{"$f":"IFERROR(INDEX(ListaČasova[],MATCH(SUMPRODUCT((ListaČasova[DAN]=RasporedČasova[[#Headers],[SREDA]])*(ROUNDDOWN($B5,10)>=ROUNDDOWN(ListaČasova[VREME POČETKA],10))*($B5<=ListaČasova[VREME ZAVRŠETKA]),ListaČasova[JEDINSTVENI]),ListaČasova[JEDINSTVENI],0),2),0)","v":"MT-113"},{"$f":"IFERROR(INDEX(ListaČasova[],MATCH(SUMPRODUCT((ListaČasova[DAN]=RasporedČasova[[#Headers],[ČETVRTAK]])*(ROUNDDOWN($B5,10)>=ROUNDDOWN(ListaČasova[VREME POČETKA],10))*($B5<=ListaČasova[VREME ZAVRŠETKA]),ListaČasova[JEDINSTVENI]),ListaČasova[JEDINSTVENI],0),2),0)","v":0},{"$f":"IFERROR(INDEX(ListaČasova[],MATCH(SUMPRODUCT((ListaČasova[DAN]=RasporedČasova[[#Headers],[PETAK]])*(ROUNDDOWN($B5,10)>=ROUNDDOWN(ListaČasova[VREME POČETKA],10))*($B5<=ListaČasova[VREME ZAVRŠETKA]),ListaČasova[JEDINSTVENI]),ListaČasova[JEDINSTVENI],0),2),0)","v":"MT-113"},{"$f":"IFERROR(INDEX(ListaČasova[],MATCH(SUMPRODUCT((ListaČasova[DAN]=RasporedČasova[[#Headers],[SUBOTA]])*(ROUNDDOWN($B5,10)>=ROUNDDOWN(ListaČasova[VREME POČETKA],10))*($B5<=ListaČasova[VREME ZAVRŠETKA]),ListaČasova[JEDINSTVENI]),ListaČasova[JEDINSTVENI],0),2),0)","v":0}]
[null,"08:30:00",{"$f":"IFERROR(INDEX(ListaČasova[],MATCH(SUMPRODUCT((ListaČasova[DAN]=RasporedČasova[[#Headers],[NEDELJA]])*(ROUNDDOWN($B6,10)>=ROUNDDOWN(ListaČasova[VREME POČETKA],10))*($B6<=ListaČasova[VREME ZAVRŠETKA]),ListaČasova[JEDINSTVENI]),ListaČasova[JEDINSTVENI],0),2),0)","v":0},{"$f":"IFERROR(INDEX(ListaČasova[],MATCH(SUMPRODUCT((ListaČasova[DAN]=RasporedČasova[[#Headers],[PONEDELJAK]])*(ROUNDDOWN($B6,10)>=ROUNDDOWN(ListaČasova[VREME POČETKA],10))*($B6<=ListaČasova[VREME ZAVRŠETKA]),ListaČasova[JEDINSTVENI]),ListaČasova[JEDINSTVENI],0),2),0)","v":"MT-113"},{"$f":"IFERROR(INDEX(ListaČasova[],MATCH(SUMPRODUCT((ListaČasova[DAN]=RasporedČasova[[#Headers],[UTORAK]])*(ROUNDDOWN($B6,10)>=ROUNDDOWN(ListaČasova[VREME POČETKA],10))*($B6<=ListaČasova[VREME ZAVRŠETKA]),ListaČasova[JEDINSTVENI]),ListaČasova[JEDINSTVENI],0),2),0)","v":0},{"$f":"IFERROR(INDEX(ListaČasova[],MATCH(SUMPRODUCT((ListaČasova[DAN]=RasporedČasova[[#Headers],[SREDA]])*(ROUNDDOWN($B6,10)>=ROUNDDOWN(ListaČasova[VREME POČETKA],10))*($B6<=ListaČasova[VREME ZAVRŠETKA]),ListaČasova[JEDINSTVENI]),ListaČasova[JEDINSTVENI],0),2),0)","v":"MT-113"},{"$f":"IFERROR(INDEX(ListaČasova[],MATCH(SUMPRODUCT((ListaČasova[DAN]=RasporedČasova[[#Headers],[ČETVRTAK]])*(ROUNDDOWN($B6,10)>=ROUNDDOWN(ListaČasova[VREME POČETKA],10))*($B6<=ListaČasova[VREME ZAVRŠETKA]),ListaČasova[JEDINSTVENI]),ListaČasova[JEDINSTVENI],0),2),0)","v":0},{"$f":"IFERROR(INDEX(ListaČasova[],MATCH(SUMPRODUCT((ListaČasova[DAN]=RasporedČasova[[#Headers],[PETAK]])*(ROUNDDOWN($B6,10)>=ROUNDDOWN(ListaČasova[VREME POČETKA],10))*($B6<=ListaČasova[VREME ZAVRŠETKA]),ListaČasova[JEDINSTVENI]),ListaČasova[JEDINSTVENI],0),2),0)","v":"MT-113"},{"$f":"IFERROR(INDEX(ListaČasova[],MATCH(SUMPRODUCT((ListaČasova[DAN]=RasporedČasova[[#Headers],[SUBOTA]])*(ROUNDDOWN($B6,10)>=ROUNDDOWN(ListaČasova[VREME POČETKA],10))*($B6<=ListaČasova[VREME ZAVRŠETKA]),ListaČasova[JEDINSTVENI]),ListaČasova[JEDINSTVENI],0),2),0)","v":0}]
[null,"08:45:00",{"$f":"IFERROR(INDEX(ListaČasova[],MATCH(SUMPRODUCT((ListaČasova[DAN]=RasporedČasova[[#Headers],[NEDELJA]])*(ROUNDDOWN($B7,10)>=ROUNDDOWN(ListaČasova[VREME POČETKA],10))*($B7<=ListaČasova[VREME ZAVRŠETKA]),ListaČasova[JEDINSTVENI]),ListaČasova[JEDINSTVENI],0),2),0)","v":0},{"$f":"IFERROR(INDEX(ListaČasova[],MATCH(SUMPRODUCT((ListaČasova[DAN]=RasporedČasova[[#Headers],[PONEDELJAK]])*(ROUNDDOWN($B7,10)>=ROUNDDOWN(ListaČasova[VREME POČETKA],10))*($B7<=ListaČasova[VREME ZAVRŠETKA]),ListaČasova[JEDINSTVENI]),ListaČasova[JEDINSTVENI],0),2),0)","v":"MT-113"},{"$f":"IFERROR(INDEX(ListaČasova[],MATCH(SUMPRODUCT((ListaČasova[DAN]=RasporedČasova[[#Headers],[UTORAK]])*(ROUNDDOWN($B7,10)>=ROUNDDOWN(ListaČasova[VREME POČETKA],10))*($B7<=ListaČasova[VREME ZAVRŠETKA]),ListaČasova[JEDINSTVENI]),ListaČasova[JEDINSTVENI],0),2),0)","v":0},{"$f":"IFERROR(INDEX(ListaČasova[],MATCH(SUMPRODUCT((ListaČasova[DAN]=RasporedČasova[[#Headers],[SREDA]])*(ROUNDDOWN($B7,10)>=ROUNDDOWN(ListaČasova[VREME POČETKA],10))*($B7<=ListaČasova[VREME ZAVRŠETKA]),ListaČasova[JEDINSTVENI]),ListaČasova[JEDINSTVENI],0),2),0)","v":"MT-113"},{"$f":"IFERROR(INDEX(ListaČasova[],MATCH(SUMPRODUCT((ListaČasova[DAN]=RasporedČasova[[#Headers],[ČETVRTAK]])*(ROUNDDOWN($B7,10)>=ROUNDDOWN(ListaČasova[VREME POČETKA],10))*($B7<=ListaČasova[VREME ZAVRŠETKA]),ListaČasova[JEDINSTVENI]),ListaČasova[JEDINSTVENI],0),2),0)","v":0},{"$f":"IFERROR(INDEX(ListaČasova[],MATCH(SUMPRODUCT((ListaČasova[DAN]=RasporedČasova[[#Headers],[PETAK]])*(ROUNDDOWN($B7,10)>=ROUNDDOWN(ListaČasova[VREME POČETKA],10))*($B7<=ListaČasova[VREME ZAVRŠETKA]),ListaČasova[JEDINSTVENI]),ListaČasova[JEDINSTVENI],0),2),0)","v":"MT-113"},{"$f":"IFERROR(INDEX(ListaČasova[],MATCH(SUMPRODUCT((ListaČasova[DAN]=RasporedČasova[[#Headers],[SUBOTA]])*(ROUNDDOWN($B7,10)>=ROUNDDOWN(ListaČasova[VREME POČETKA],10))*($B7<=ListaČasova[VREME ZAVRŠETKA]),ListaČasova[JEDINSTVENI]),ListaČasova[JEDINSTVENI],0),2),0)","v":0}]
[null,"09:00:00",{"$f":"IFERROR(INDEX(ListaČasova[],MATCH(SUMPRODUCT((ListaČasova[DAN]=RasporedČasova[[#Headers],[NEDELJA]])*(ROUNDDOWN($B8,10)>=ROUNDDOWN(ListaČasova[VREME POČETKA],10))*($B8<=ListaČasova[VREME ZAVRŠETKA]),ListaČasova[JEDINSTVENI]),ListaČasova[JEDINSTVENI],0),2),0)","v":0},{"$f":"IFERROR(INDEX(ListaČasova[],MATCH(SUMPRODUCT((ListaČasova[DAN]=RasporedČasova[[#Headers],[PONEDELJAK]])*(ROUNDDOWN($B8,10)>=ROUNDDOWN(ListaČasova[VREME POČETKA],10))*($B8<=ListaČasova[VREME ZAVRŠETKA]),ListaČasova[JEDINSTVENI]),ListaČasova[JEDINSTVENI],0),2),0)","v":"MT-113"},{"$f":"IFERROR(INDEX(ListaČasova[],MATCH(SUMPRODUCT((ListaČasova[DAN]=RasporedČasova[[#Headers],[UTORAK]])*(ROUNDDOWN($B8,10)>=ROUNDDOWN(ListaČasova[VREME POČETKA],10))*($B8<=ListaČasova[VREME ZAVRŠETKA]),ListaČasova[JEDINSTVENI]),ListaČasova[JEDINSTVENI],0),2),0)","v":0},{"$f":"IFERROR(INDEX(ListaČasova[],MATCH(SUMPRODUCT((ListaČasova[DAN]=RasporedČasova[[#Headers],[SREDA]])*(ROUNDDOWN($B8,10)>=ROUNDDOWN(ListaČasova[VREME POČETKA],10))*($B8<=ListaČasova[VREME ZAVRŠETKA]),ListaČasova[JEDINSTVENI]),ListaČasova[JEDINSTVENI],0),2),0)","v":"MT-113"},{"$f":"IFERROR(INDEX(ListaČasova[],MATCH(SUMPRODUCT((ListaČasova[DAN]=RasporedČasova[[#Headers],[ČETVRTAK]])*(ROUNDDOWN($B8,10)>=ROUNDDOWN(ListaČasova[VREME POČETKA],10))*($B8<=ListaČasova[VREME ZAVRŠETKA]),ListaČasova[JEDINSTVENI]),ListaČasova[JEDINSTVENI],0),2),0)","v":0},{"$f":"IFERROR(INDEX(ListaČasova[],MATCH(SUMPRODUCT((ListaČasova[DAN]=RasporedČasova[[#Headers],[PETAK]])*(ROUNDDOWN($B8,10)>=ROUNDDOWN(ListaČasova[VREME POČETKA],10))*($B8<=ListaČasova[VREME ZAVRŠETKA]),ListaČasova[JEDINSTVENI]),ListaČasova[JEDINSTVENI],0),2),0)","v":"MT-113"},{"$f":"IFERROR(INDEX(ListaČasova[],MATCH(SUMPRODUCT((ListaČasova[DAN]=RasporedČasova[[#Headers],[SUBOTA]])*(ROUNDDOWN($B8,10)>=ROUNDDOWN(ListaČasova[VREME POČETKA],10))*($B8<=ListaČasova[VREME ZAVRŠETKA]),ListaČasova[JEDINSTVENI]),ListaČasova[JEDINSTVENI],0),2),0)","v":0}]
[null,"09:15:00",{"$f":"IFERROR(INDEX(ListaČasova[],MATCH(SUMPRODUCT((ListaČasova[DAN]=RasporedČasova[[#Headers],[NEDELJA]])*(ROUNDDOWN($B9,10)>=ROUNDDOWN(ListaČasova[VREME POČETKA],10))*($B9<=ListaČasova[VREME ZAVRŠETKA]),ListaČasova[JEDINSTVENI]),ListaČasova[JEDINSTVENI],0),2),0)","v":0},{"$f":"IFERROR(INDEX(ListaČasova[],MATCH(SUMPRODUCT((ListaČasova[DAN]=RasporedČasova[[#Headers],[PONEDELJAK]])*(ROUNDDOWN($B9,10)>=ROUNDDOWN(ListaČasova[VREME POČETKA],10))*($B9<=ListaČasova[VREME ZAVRŠETKA]),ListaČasova[JEDINSTVENI]),ListaČasova[JEDINSTVENI],0),2),0)","v":"MT-113"},{"$f":"IFERROR(INDEX(ListaČasova[],MATCH(SUMPRODUCT((ListaČasova[DAN]=RasporedČasova[[#Headers],[UTORAK]])*(ROUNDDOWN($B9,10)>=ROUNDDOWN(ListaČasova[VREME POČETKA],10))*($B9<=ListaČasova[VREME ZAVRŠETKA]),ListaČasova[JEDINSTVENI]),ListaČasova[JEDINSTVENI],0),2),0)","v":0},{"$f":"IFERROR(INDEX(ListaČasova[],MATCH(SUMPRODUCT((ListaČasova[DAN]=RasporedČasova[[#Headers],[SREDA]])*(ROUNDDOWN($B9,10)>=ROUNDDOWN(ListaČasova[VREME POČETKA],10))*($B9<=ListaČasova[VREME ZAVRŠETKA]),ListaČasova[JEDINSTVENI]),ListaČasova[JEDINSTVENI],0),2),0)","v":"MT-113"},{"$f":"IFERROR(INDEX(ListaČasova[],MATCH(SUMPRODUCT((ListaČasova[DAN]=RasporedČasova[[#Headers],[ČETVRTAK]])*(ROUNDDOWN($B9,10)>=ROUNDDOWN(ListaČasova[VREME POČETKA],10))*($B9<=ListaČasova[VREME ZAVRŠETKA]),ListaČasova[JEDINSTVENI]),ListaČasova[JEDINSTVENI],0),2),0)","v":0},{"$f":"IFERROR(INDEX(ListaČasova[],MATCH(SUMPRODUCT((ListaČasova[DAN]=RasporedČasova[[#Headers],[PETAK]])*(ROUNDDOWN($B9,10)>=ROUNDDOWN(ListaČasova[VREME POČETKA],10))*($B9<=ListaČasova[VREME ZAVRŠETKA]),ListaČasova[JEDINSTVENI]),ListaČasova[JEDINSTVENI],0),2),0)","v":"MT-113"},{"$f":"IFERROR(INDEX(ListaČasova[],MATCH(SUMPRODUCT((ListaČasova[DAN]=RasporedČasova[[#Headers],[SUBOTA]])*(ROUNDDOWN($B9,10)>=ROUNDDOWN(ListaČasova[VREME POČETKA],10))*($B9<=ListaČasova[VREME ZAVRŠETKA]),ListaČasova[JEDINSTVENI]),ListaČasova[JEDINSTVENI],0),2),0)","v":0}]
[null,"09:30:00",{"$f":"IFERROR(INDEX(ListaČasova[],MATCH(SUMPRODUCT((ListaČasova[DAN]=RasporedČasova[[#Headers],[NEDELJA]])*(ROUNDDOWN($B10,10)>=ROUNDDOWN(ListaČasova[VREME POČETKA],10))*($B10<=ListaČasova[VREME ZAVRŠETKA]),ListaČasova[JEDINSTVENI]),ListaČasova[JEDINSTVENI],0),2),0)","v":0},{"$f":"IFERROR(INDEX(ListaČasova[],MATCH(SUMPRODUCT((ListaČasova[DAN]=RasporedČasova[[#Headers],[PONEDELJAK]])*(ROUNDDOWN($B10,10)>=ROUNDDOWN(ListaČasova[VREME POČETKA],10))*($B10<=ListaČasova[VREME ZAVRŠETKA]),ListaČasova[JEDINSTVENI]),ListaČasova[JEDINSTVENI],0),2),0)","v":0},{"$f":"IFERROR(INDEX(ListaČasova[],MATCH(SUMPRODUCT((ListaČasova[DAN]=RasporedČasova[[#Headers],[UTORAK]])*(ROUNDDOWN($B10,10)>=ROUNDDOWN(ListaČasova[VREME POČETKA],10))*($B10<=ListaČasova[VREME ZAVRŠETKA]),ListaČasova[JEDINSTVENI]),ListaČasova[JEDINSTVENI],0),2),0)","v":0},{"$f":"IFERROR(INDEX(ListaČasova[],MATCH(SUMPRODUCT((ListaČasova[DAN]=RasporedČasova[[#Headers],[SREDA]])*(ROUNDDOWN($B10,10)>=ROUNDDOWN(ListaČasova[VREME POČETKA],10))*($B10<=ListaČasova[VREME ZAVRŠETKA]),ListaČasova[JEDINSTVENI]),ListaČasova[JEDINSTVENI],0),2),0)","v":0},{"$f":"IFERROR(INDEX(ListaČasova[],MATCH(SUMPRODUCT((ListaČasova[DAN]=RasporedČasova[[#Headers],[ČETVRTAK]])*(ROUNDDOWN($B10,10)>=ROUNDDOWN(ListaČasova[VREME POČETKA],10))*($B10<=ListaČasova[VREME ZAVRŠETKA]),ListaČasova[JEDINSTVENI]),ListaČasova[JEDINSTVENI],0),2),0)","v":0},{"$f":"IFERROR(INDEX(ListaČasova[],MATCH(SUMPRODUCT((ListaČasova[DAN]=RasporedČasova[[#Headers],[PETAK]])*(ROUNDDOWN($B10,10)>=ROUNDDOWN(ListaČasova[VREME POČETKA],10))*($B10<=ListaČasova[VREME ZAVRŠETKA]),ListaČasova[JEDINSTVENI]),ListaČasova[JEDINSTVENI],0),2),0)","v":0},{"$f":"IFERROR(INDEX(ListaČasova[],MATCH(SUMPRODUCT((ListaČasova[DAN]=RasporedČasova[[#Headers],[SUBOTA]])*(ROUNDDOWN($B10,10)>=ROUNDDOWN(ListaČasova[VREME POČETKA],10))*($B10<=ListaČasova[VREME ZAVRŠETKA]),ListaČasova[JEDINSTVENI]),ListaČasova[JEDINSTVENI],0),2),0)","v":0}]
[null,"09:45:00",{"$f":"IFERROR(INDEX(ListaČasova[],MATCH(SUMPRODUCT((ListaČasova[DAN]=RasporedČasova[[#Headers],[NEDELJA]])*(ROUNDDOWN($B11,10)>=ROUNDDOWN(ListaČasova[VREME POČETKA],10))*($B11<=ListaČasova[VREME ZAVRŠETKA]),ListaČasova[JEDINSTVENI]),ListaČasova[JEDINSTVENI],0),2),0)","v":0},{"$f":"IFERROR(INDEX(ListaČasova[],MATCH(SUMPRODUCT((ListaČasova[DAN]=RasporedČasova[[#Headers],[PONEDELJAK]])*(ROUNDDOWN($B11,10)>=ROUNDDOWN(ListaČasova[VREME POČETKA],10))*($B11<=ListaČasova[VREME ZAVRŠETKA]),ListaČasova[JEDINSTVENI]),ListaČasova[JEDINSTVENI],0),2),0)","v":0},{"$f":"IFERROR(INDEX(ListaČasova[],MATCH(SUMPRODUCT((ListaČasova[DAN]=RasporedČasova[[#Headers],[UTORAK]])*(ROUNDDOWN($B11,10)>=ROUNDDOWN(ListaČasova[VREME POČETKA],10))*($B11<=ListaČasova[VREME ZAVRŠETKA]),ListaČasova[JEDINSTVENI]),ListaČasova[JEDINSTVENI],0),2),0)","v":0},{"$f":"IFERROR(INDEX(ListaČasova[],MATCH(SUMPRODUCT((ListaČasova[DAN]=RasporedČasova[[#Headers],[SREDA]])*(ROUNDDOWN($B11,10)>=ROUNDDOWN(ListaČasova[VREME POČETKA],10))*($B11<=ListaČasova[VREME ZAVRŠETKA]),ListaČasova[JEDINSTVENI]),ListaČasova[JEDINSTVENI],0),2),0)","v":0},{"$f":"IFERROR(INDEX(ListaČasova[],MATCH(SUMPRODUCT((ListaČasova[DAN]=RasporedČasova[[#Headers],[ČETVRTAK]])*(ROUNDDOWN($B11,10)>=ROUNDDOWN(ListaČasova[VREME POČETKA],10))*($B11<=ListaČasova[VREME ZAVRŠETKA]),ListaČasova[JEDINSTVENI]),ListaČasova[JEDINSTVENI],0),2),0)","v":0},{"$f":"IFERROR(INDEX(ListaČasova[],MATCH(SUMPRODUCT((ListaČasova[DAN]=RasporedČasova[[#Headers],[PETAK]])*(ROUNDDOWN($B11,10)>=ROUNDDOWN(ListaČasova[VREME POČETKA],10))*($B11<=ListaČasova[VREME ZAVRŠETKA]),ListaČasova[JEDINSTVENI]),ListaČasova[JEDINSTVENI],0),2),0)","v":0},{"$f":"IFERROR(INDEX(ListaČasova[],MATCH(SUMPRODUCT((ListaČasova[DAN]=RasporedČasova[[#Headers],[SUBOTA]])*(ROUNDDOWN($B11,10)>=ROUNDDOWN(ListaČasova[VREME POČETKA],10))*($B11<=ListaČasova[VREME ZAVRŠETKA]),ListaČasova[JEDINSTVENI]),ListaČasova[JEDINSTVENI],0),2),0)","v":0}]
[null,"10:00:00",{"$f":"IFERROR(INDEX(ListaČasova[],MATCH(SUMPRODUCT((ListaČasova[DAN]=RasporedČasova[[#Headers],[NEDELJA]])*(ROUNDDOWN($B12,10)>=ROUNDDOWN(ListaČasova[VREME POČETKA],10))*($B12<=ListaČasova[VREME ZAVRŠETKA]),ListaČasova[JEDINSTVENI]),ListaČasova[JEDINSTVENI],0),2),0)","v":0},{"$f":"IFERROR(INDEX(ListaČasova[],MATCH(SUMPRODUCT((ListaČasova[DAN]=RasporedČasova[[#Headers],[PONEDELJAK]])*(ROUNDDOWN($B12,10)>=ROUNDDOWN(ListaČasova[VREME POČETKA],10))*($B12<=ListaČasova[VREME ZAVRŠETKA]),ListaČasova[JEDINSTVENI]),ListaČasova[JEDINSTVENI],0),2),0)","v":0},{"$f":"IFERROR(INDEX(ListaČasova[],MATCH(SUMPRODUCT((ListaČasova[DAN]=RasporedČasova[[#Headers],[UTORAK]])*(ROUNDDOWN($B12,10)>=ROUNDDOWN(ListaČasova[VREME POČETKA],10))*($B12<=ListaČasova[VREME ZAVRŠETKA]),ListaČasova[JEDINSTVENI]),ListaČasova[JEDINSTVENI],0),2),0)","v":0},{"$f":"IFERROR(INDEX(ListaČasova[],MATCH(SUMPRODUCT((ListaČasova[DAN]=RasporedČasova[[#Headers],[SREDA]])*(ROUNDDOWN($B12,10)>=ROUNDDOWN(ListaČasova[VREME POČETKA],10))*($B12<=ListaČasova[VREME ZAVRŠETKA]),ListaČasova[JEDINSTVENI]),ListaČasova[JEDINSTVENI],0),2),0)","v":0},{"$f":"IFERROR(INDEX(ListaČasova[],MATCH(SUMPRODUCT((ListaČasova[DAN]=RasporedČasova[[#Headers],[ČETVRTAK]])*(ROUNDDOWN($B12,10)>=ROUNDDOWN(ListaČasova[VREME POČETKA],10))*($B12<=ListaČasova[VREME ZAVRŠETKA]),ListaČasova[JEDINSTVENI]),ListaČasova[JEDINSTVENI],0),2),0)","v":0},{"$f":"IFERROR(INDEX(ListaČasova[],MATCH(SUMPRODUCT((ListaČasova[DAN]=RasporedČasova[[#Headers],[PETAK]])*(ROUNDDOWN($B12,10)>=ROUNDDOWN(ListaČasova[VREME POČETKA],10))*($B12<=ListaČasova[VREME ZAVRŠETKA]),ListaČasova[JEDINSTVENI]),ListaČasova[JEDINSTVENI],0),2),0)","v":0},{"$f":"IFERROR(INDEX(ListaČasova[],MATCH(SUMPRODUCT((ListaČasova[DAN]=RasporedČasova[[#Headers],[SUBOTA]])*(ROUNDDOWN($B12,10)>=ROUNDDOWN(ListaČasova[VREME POČETKA],10))*($B12<=ListaČasova[VREME ZAVRŠETKA]),ListaČasova[JEDINSTVENI]),ListaČasova[JEDINSTVENI],0),2),0)","v":0}]
[null,"10:15:00",{"$f":"IFERROR(INDEX(ListaČasova[],MATCH(SUMPRODUCT((ListaČasova[DAN]=RasporedČasova[[#Headers],[NEDELJA]])*(ROUNDDOWN($B13,10)>=ROUNDDOWN(ListaČasova[VREME POČETKA],10))*($B13<=ListaČasova[VREME ZAVRŠETKA]),ListaČasova[JEDINSTVENI]),ListaČasova[JEDINSTVENI],0),2),0)","v":0},{"$f":"IFERROR(INDEX(ListaČasova[],MATCH(SUMPRODUCT((ListaČasova[DAN]=RasporedČasova[[#Headers],[PONEDELJAK]])*(ROUNDDOWN($B13,10)>=ROUNDDOWN(ListaČasova[VREME POČETKA],10))*($B13<=ListaČasova[VREME ZAVRŠETKA]),ListaČasova[JEDINSTVENI]),ListaČasova[JEDINSTVENI],0),2),0)","v":0},{"$f":"IFERROR(INDEX(ListaČasova[],MATCH(SUMPRODUCT((ListaČasova[DAN]=RasporedČasova[[#Headers],[UTORAK]])*(ROUNDDOWN($B13,10)>=ROUNDDOWN(ListaČasova[VREME POČETKA],10))*($B13<=ListaČasova[VREME ZAVRŠETKA]),ListaČasova[JEDINSTVENI]),ListaČasova[JEDINSTVENI],0),2),0)","v":0},{"$f":"IFERROR(INDEX(ListaČasova[],MATCH(SUMPRODUCT((ListaČasova[DAN]=RasporedČasova[[#Headers],[SREDA]])*(ROUNDDOWN($B13,10)>=ROUNDDOWN(ListaČasova[VREME POČETKA],10))*($B13<=ListaČasova[VREME ZAVRŠETKA]),ListaČasova[JEDINSTVENI]),ListaČasova[JEDINSTVENI],0),2),0)","v":0},{"$f":"IFERROR(INDEX(ListaČasova[],MATCH(SUMPRODUCT((ListaČasova[DAN]=RasporedČasova[[#Headers],[ČETVRTAK]])*(ROUNDDOWN($B13,10)>=ROUNDDOWN(ListaČasova[VREME POČETKA],10))*($B13<=ListaČasova[VREME ZAVRŠETKA]),ListaČasova[JEDINSTVENI]),ListaČasova[JEDINSTVENI],0),2),0)","v":0},{"$f":"IFERROR(INDEX(ListaČasova[],MATCH(SUMPRODUCT((ListaČasova[DAN]=RasporedČasova[[#Headers],[PETAK]])*(ROUNDDOWN($B13,10)>=ROUNDDOWN(ListaČasova[VREME POČETKA],10))*($B13<=ListaČasova[VREME ZAVRŠETKA]),ListaČasova[JEDINSTVENI]),ListaČasova[JEDINSTVENI],0),2),0)","v":0},{"$f":"IFERROR(INDEX(ListaČasova[],MATCH(SUMPRODUCT((ListaČasova[DAN]=RasporedČasova[[#Headers],[SUBOTA]])*(ROUNDDOWN($B13,10)>=ROUNDDOWN(ListaČasova[VREME POČETKA],10))*($B13<=ListaČasova[VREME ZAVRŠETKA]),ListaČasova[JEDINSTVENI]),ListaČasova[JEDINSTVENI],0),2),0)","v":0}]
[null,"10:30:00",{"$f":"IFERROR(INDEX(ListaČasova[],MATCH(SUMPRODUCT((ListaČasova[DAN]=RasporedČasova[[#Headers],[NEDELJA]])*(ROUNDDOWN($B14,10)>=ROUNDDOWN(ListaČasova[VREME POČETKA],10))*($B14<=ListaČasova[VREME ZAVRŠETKA]),ListaČasova[JEDINSTVENI]),ListaČasova[JEDINSTVENI],0),2),0)","v":0},{"$f":"IFERROR(INDEX(ListaČasova[],MATCH(SUMPRODUCT((ListaČasova[DAN]=RasporedČasova[[#Headers],[PONEDELJAK]])*(ROUNDDOWN($B14,10)>=ROUNDDOWN(ListaČasova[VREME POČETKA],10))*($B14<=ListaČasova[VREME ZAVRŠETKA]),ListaČasova[JEDINSTVENI]),ListaČasova[JEDINSTVENI],0),2),0)","v":0},{"$f":"IFERROR(INDEX(ListaČasova[],MATCH(SUMPRODUCT((ListaČasova[DAN]=RasporedČasova[[#Headers],[UTORAK]])*(ROUNDDOWN($B14,10)>=ROUNDDOWN(ListaČasova[VREME POČETKA],10))*($B14<=ListaČasova[VREME ZAVRŠETKA]),ListaČasova[JEDINSTVENI]),ListaČasova[JEDINSTVENI],0),2),0)","v":0},{"$f":"IFERROR(INDEX(ListaČasova[],MATCH(SUMPRODUCT((ListaČasova[DAN]=RasporedČasova[[#Headers],[SREDA]])*(ROUNDDOWN($B14,10)>=ROUNDDOWN(ListaČasova[VREME POČETKA],10))*($B14<=ListaČasova[VREME ZAVRŠETKA]),ListaČasova[JEDINSTVENI]),ListaČasova[JEDINSTVENI],0),2),0)","v":0},{"$f":"IFERROR(INDEX(ListaČasova[],MATCH(SUMPRODUCT((ListaČasova[DAN]=RasporedČasova[[#Headers],[ČETVRTAK]])*(ROUNDDOWN($B14,10)>=ROUNDDOWN(ListaČasova[VREME POČETKA],10))*($B14<=ListaČasova[VREME ZAVRŠETKA]),ListaČasova[JEDINSTVENI]),ListaČasova[JEDINSTVENI],0),2),0)","v":0},{"$f":"IFERROR(INDEX(ListaČasova[],MATCH(SUMPRODUCT((ListaČasova[DAN]=RasporedČasova[[#Headers],[PETAK]])*(ROUNDDOWN($B14,10)>=ROUNDDOWN(ListaČasova[VREME POČETKA],10))*($B14<=ListaČasova[VREME ZAVRŠETKA]),ListaČasova[JEDINSTVENI]),ListaČasova[JEDINSTVENI],0),2),0)","v":0},{"$f":"IFERROR(INDEX(ListaČasova[],MATCH(SUMPRODUCT((ListaČasova[DAN]=RasporedČasova[[#Headers],[SUBOTA]])*(ROUNDDOWN($B14,10)>=ROUNDDOWN(ListaČasova[VREME POČETKA],10))*($B14<=ListaČasova[VREME ZAVRŠETKA]),ListaČasova[JEDINSTVENI]),ListaČasova[JEDINSTVENI],0),2),0)","v":0}]
[null,"10:45:00",{"$f":"IFERROR(INDEX(ListaČasova[],MATCH(SUMPRODUCT((ListaČasova[DAN]=RasporedČasova[[#Headers],[NEDELJA]])*(ROUNDDOWN($B15,10)>=ROUNDDOWN(ListaČasova[VREME POČETKA],10))*($B15<=ListaČasova[VREME ZAVRŠETKA]),ListaČasova[JEDINSTVENI]),ListaČasova[JEDINSTVENI],0),2),0)","v":0},{"$f":"IFERROR(INDEX(ListaČasova[],MATCH(SUMPRODUCT((ListaČasova[DAN]=RasporedČasova[[#Headers],[PONEDELJAK]])*(ROUNDDOWN($B15,10)>=ROUNDDOWN(ListaČasova[VREME POČETKA],10))*($B15<=ListaČasova[VREME ZAVRŠETKA]),ListaČasova[JEDINSTVENI]),ListaČasova[JEDINSTVENI],0),2),0)","v":0},{"$f":"IFERROR(INDEX(ListaČasova[],MATCH(SUMPRODUCT((ListaČasova[DAN]=RasporedČasova[[#Headers],[UTORAK]])*(ROUNDDOWN($B15,10)>=ROUNDDOWN(ListaČasova[VREME POČETKA],10))*($B15<=ListaČasova[VREME ZAVRŠETKA]),ListaČasova[JEDINSTVENI]),ListaČasova[JEDINSTVENI],0),2),0)","v":0},{"$f":"IFERROR(INDEX(ListaČasova[],MATCH(SUMPRODUCT((ListaČasova[DAN]=RasporedČasova[[#Headers],[SREDA]])*(ROUNDDOWN($B15,10)>=ROUNDDOWN(ListaČasova[VREME POČETKA],10))*($B15<=ListaČasova[VREME ZAVRŠETKA]),ListaČasova[JEDINSTVENI]),ListaČasova[JEDINSTVENI],0),2),0)","v":0},{"$f":"IFERROR(INDEX(ListaČasova[],MATCH(SUMPRODUCT((ListaČasova[DAN]=RasporedČasova[[#Headers],[ČETVRTAK]])*(ROUNDDOWN($B15,10)>=ROUNDDOWN(ListaČasova[VREME POČETKA],10))*($B15<=ListaČasova[VREME ZAVRŠETKA]),ListaČasova[JEDINSTVENI]),ListaČasova[JEDINSTVENI],0),2),0)","v":0},{"$f":"IFERROR(INDEX(ListaČasova[],MATCH(SUMPRODUCT((ListaČasova[DAN]=RasporedČasova[[#Headers],[PETAK]])*(ROUNDDOWN($B15,10)>=ROUNDDOWN(ListaČasova[VREME POČETKA],10))*($B15<=ListaČasova[VREME ZAVRŠETKA]),ListaČasova[JEDINSTVENI]),ListaČasova[JEDINSTVENI],0),2),0)","v":0},{"$f":"IFERROR(INDEX(ListaČasova[],MATCH(SUMPRODUCT((ListaČasova[DAN]=RasporedČasova[[#Headers],[SUBOTA]])*(ROUNDDOWN($B15,10)>=ROUNDDOWN(ListaČasova[VREME POČETKA],10))*($B15<=ListaČasova[VREME ZAVRŠETKA]),ListaČasova[JEDINSTVENI]),ListaČasova[JEDINSTVENI],0),2),0)","v":0}]
[null,"11:00:00",{"$f":"IFERROR(INDEX(ListaČasova[],MATCH(SUMPRODUCT((ListaČasova[DAN]=RasporedČasova[[#Headers],[NEDELJA]])*(ROUNDDOWN($B16,10)>=ROUNDDOWN(ListaČasova[VREME POČETKA],10))*($B16<=ListaČasova[VREME ZAVRŠETKA]),ListaČasova[JEDINSTVENI]),ListaČasova[JEDINSTVENI],0),2),0)","v":0},{"$f":"IFERROR(INDEX(ListaČasova[],MATCH(SUMPRODUCT((ListaČasova[DAN]=RasporedČasova[[#Headers],[PONEDELJAK]])*(ROUNDDOWN($B16,10)>=ROUNDDOWN(ListaČasova[VREME POČETKA],10))*($B16<=ListaČasova[VREME ZAVRŠETKA]),ListaČasova[JEDINSTVENI]),ListaČasova[JEDINSTVENI],0),2),0)","v":0},{"$f":"IFERROR(INDEX(ListaČasova[],MATCH(SUMPRODUCT((ListaČasova[DAN]=RasporedČasova[[#Headers],[UTORAK]])*(ROUNDDOWN($B16,10)>=ROUNDDOWN(ListaČasova[VREME POČETKA],10))*($B16<=ListaČasova[VREME ZAVRŠETKA]),ListaČasova[JEDINSTVENI]),ListaČasova[JEDINSTVENI],0),2),0)","v":"ZF-295"},{"$f":"IFERROR(INDEX(ListaČasova[],MATCH(SUMPRODUCT((ListaČasova[DAN]=RasporedČasova[[#Headers],[SREDA]])*(ROUNDDOWN($B16,10)>=ROUNDDOWN(ListaČasova[VREME POČETKA],10))*($B16<=ListaČasova[VREME ZAVRŠETKA]),ListaČasova[JEDINSTVENI]),ListaČasova[JEDINSTVENI],0),2),0)","v":0},{"$f":"IFERROR(INDEX(ListaČasova[],MATCH(SUMPRODUCT((ListaČasova[DAN]=RasporedČasova[[#Headers],[ČETVRTAK]])*(ROUNDDOWN($B16,10)>=ROUNDDOWN(ListaČasova[VREME POČETKA],10))*($B16<=ListaČasova[VREME ZAVRŠETKA]),ListaČasova[JEDINSTVENI]),ListaČasova[JEDINSTVENI],0),2),0)","v":"ZF-295"},{"$f":"IFERROR(INDEX(ListaČasova[],MATCH(SUMPRODUCT((ListaČasova[DAN]=RasporedČasova[[#Headers],[PETAK]])*(ROUNDDOWN($B16,10)>=ROUNDDOWN(ListaČasova[VREME POČETKA],10))*($B16<=ListaČasova[VREME ZAVRŠETKA]),ListaČasova[JEDINSTVENI]),ListaČasova[JEDINSTVENI],0),2),0)","v":0},{"$f":"IFERROR(INDEX(ListaČasova[],MATCH(SUMPRODUCT((ListaČasova[DAN]=RasporedČasova[[#Headers],[SUBOTA]])*(ROUNDDOWN($B16,10)>=ROUNDDOWN(ListaČasova[VREME POČETKA],10))*($B16<=ListaČasova[VREME ZAVRŠETKA]),ListaČasova[JEDINSTVENI]),ListaČasova[JEDINSTVENI],0),2),0)","v":0}]
[null,"11:15:00",{"$f":"IFERROR(INDEX(ListaČasova[],MATCH(SUMPRODUCT((ListaČasova[DAN]=RasporedČasova[[#Headers],[NEDELJA]])*(ROUNDDOWN($B17,10)>=ROUNDDOWN(ListaČasova[VREME POČETKA],10))*($B17<=ListaČasova[VREME ZAVRŠETKA]),ListaČasova[JEDINSTVENI]),ListaČasova[JEDINSTVENI],0),2),0)","v":0},{"$f":"IFERROR(INDEX(ListaČasova[],MATCH(SUMPRODUCT((ListaČasova[DAN]=RasporedČasova[[#Headers],[PONEDELJAK]])*(ROUNDDOWN($B17,10)>=ROUNDDOWN(ListaČasova[VREME POČETKA],10))*($B17<=ListaČasova[VREME ZAVRŠETKA]),ListaČasova[JEDINSTVENI]),ListaČasova[JEDINSTVENI],0),2),0)","v":0},{"$f":"IFERROR(INDEX(ListaČasova[],MATCH(SUMPRODUCT((ListaČasova[DAN]=RasporedČasova[[#Headers],[UTORAK]])*(ROUNDDOWN($B17,10)>=ROUNDDOWN(ListaČasova[VREME POČETKA],10))*($B17<=ListaČasova[VREME ZAVRŠETKA]),ListaČasova[JEDINSTVENI]),ListaČasova[JEDINSTVENI],0),2),0)","v":"ZF-295"},{"$f":"IFERROR(INDEX(ListaČasova[],MATCH(SUMPRODUCT((ListaČasova[DAN]=RasporedČasova[[#Headers],[SREDA]])*(ROUNDDOWN($B17,10)>=ROUNDDOWN(ListaČasova[VREME POČETKA],10))*($B17<=ListaČasova[VREME ZAVRŠETKA]),ListaČasova[JEDINSTVENI]),ListaČasova[JEDINSTVENI],0),2),0)","v":0},{"$f":"IFERROR(INDEX(ListaČasova[],MATCH(SUMPRODUCT((ListaČasova[DAN]=RasporedČasova[[#Headers],[ČETVRTAK]])*(ROUNDDOWN($B17,10)>=ROUNDDOWN(ListaČasova[VREME POČETKA],10))*($B17<=ListaČasova[VREME ZAVRŠETKA]),ListaČasova[JEDINSTVENI]),ListaČasova[JEDINSTVENI],0),2),0)","v":"ZF-295"},{"$f":"IFERROR(INDEX(ListaČasova[],MATCH(SUMPRODUCT((ListaČasova[DAN]=RasporedČasova[[#Headers],[PETAK]])*(ROUNDDOWN($B17,10)>=ROUNDDOWN(ListaČasova[VREME POČETKA],10))*($B17<=ListaČasova[VREME ZAVRŠETKA]),ListaČasova[JEDINSTVENI]),ListaČasova[JEDINSTVENI],0),2),0)","v":0},{"$f":"IFERROR(INDEX(ListaČasova[],MATCH(SUMPRODUCT((ListaČasova[DAN]=RasporedČasova[[#Headers],[SUBOTA]])*(ROUNDDOWN($B17,10)>=ROUNDDOWN(ListaČasova[VREME POČETKA],10))*($B17<=ListaČasova[VREME ZAVRŠETKA]),ListaČasova[JEDINSTVENI]),ListaČasova[JEDINSTVENI],0),2),0)","v":0}]
[null,"11:30:00",{"$f":"IFERROR(INDEX(ListaČasova[],MATCH(SUMPRODUCT((ListaČasova[DAN]=RasporedČasova[[#Headers],[NEDELJA]])*(ROUNDDOWN($B18,10)>=ROUNDDOWN(ListaČasova[VREME POČETKA],10))*($B18<=ListaČasova[VREME ZAVRŠETKA]),ListaČasova[JEDINSTVENI]),ListaČasova[JEDINSTVENI],0),2),0)","v":0},{"$f":"IFERROR(INDEX(ListaČasova[],MATCH(SUMPRODUCT((ListaČasova[DAN]=RasporedČasova[[#Headers],[PONEDELJAK]])*(ROUNDDOWN($B18,10)>=ROUNDDOWN(ListaČasova[VREME POČETKA],10))*($B18<=ListaČasova[VREME ZAVRŠETKA]),ListaČasova[JEDINSTVENI]),ListaČasova[JEDINSTVENI],0),2),0)","v":0},{"$f":"IFERROR(INDEX(ListaČasova[],MATCH(SUMPRODUCT((ListaČasova[DAN]=RasporedČasova[[#Headers],[UTORAK]])*(ROUNDDOWN($B18,10)>=ROUNDDOWN(ListaČasova[VREME POČETKA],10))*($B18<=ListaČasova[VREME ZAVRŠETKA]),ListaČasova[JEDINSTVENI]),ListaČasova[JEDINSTVENI],0),2),0)","v":"ZF-295"},{"$f":"IFERROR(INDEX(ListaČasova[],MATCH(SUMPRODUCT((ListaČasova[DAN]=RasporedČasova[[#Headers],[SREDA]])*(ROUNDDOWN($B18,10)>=ROUNDDOWN(ListaČasova[VREME POČETKA],10))*($B18<=ListaČasova[VREME ZAVRŠETKA]),ListaČasova[JEDINSTVENI]),ListaČasova[JEDINSTVENI],0),2),0)","v":0},{"$f":"IFERROR(INDEX(ListaČasova[],MATCH(SUMPRODUCT((ListaČasova[DAN]=RasporedČasova[[#Headers],[ČETVRTAK]])*(ROUNDDOWN($B18,10)>=ROUNDDOWN(ListaČasova[VREME POČETKA],10))*($B18<=ListaČasova[VREME ZAVRŠETKA]),ListaČasova[JEDINSTVENI]),ListaČasova[JEDINSTVENI],0),2),0)","v":"ZF-295"},{"$f":"IFERROR(INDEX(ListaČasova[],MATCH(SUMPRODUCT((ListaČasova[DAN]=RasporedČasova[[#Headers],[PETAK]])*(ROUNDDOWN($B18,10)>=ROUNDDOWN(ListaČasova[VREME POČETKA],10))*($B18<=ListaČasova[VREME ZAVRŠETKA]),ListaČasova[JEDINSTVENI]),ListaČasova[JEDINSTVENI],0),2),0)","v":0},{"$f":"IFERROR(INDEX(ListaČasova[],MATCH(SUMPRODUCT((ListaČasova[DAN]=RasporedČasova[[#Headers],[SUBOTA]])*(ROUNDDOWN($B18,10)>=ROUNDDOWN(ListaČasova[VREME POČETKA],10))*($B18<=ListaČasova[VREME ZAVRŠETKA]),ListaČasova[JEDINSTVENI]),ListaČasova[JEDINSTVENI],0),2),0)","v":0}]
[null,"11:45:00",{"$f":"IFERROR(INDEX(ListaČasova[],MATCH(SUMPRODUCT((ListaČasova[DAN]=RasporedČasova[[#Headers],[NEDELJA]])*(ROUNDDOWN($B19,10)>=ROUNDDOWN(ListaČasova[VREME POČETKA],10))*($B19<=ListaČasova[VREME ZAVRŠETKA]),ListaČasova[JEDINSTVENI]),ListaČasova[JEDINSTVENI],0),2),0)","v":0},{"$f":"IFERROR(INDEX(ListaČasova[],MATCH(SUMPRODUCT((ListaČasova[DAN]=RasporedČasova[[#Headers],[PONEDELJAK]])*(ROUNDDOWN($B19,10)>=ROUNDDOWN(ListaČasova[VREME POČETKA],10))*($B19<=ListaČasova[VREME ZAVRŠETKA]),ListaČasova[JEDINSTVENI]),ListaČasova[JEDINSTVENI],0),2),0)","v":0},{"$f":"IFERROR(INDEX(ListaČasova[],MATCH(SUMPRODUCT((ListaČasova[DAN]=RasporedČasova[[#Headers],[UTORAK]])*(ROUNDDOWN($B19,10)>=ROUNDDOWN(ListaČasova[VREME POČETKA],10))*($B19<=ListaČasova[VREME ZAVRŠETKA]),ListaČasova[JEDINSTVENI]),ListaČasova[JEDINSTVENI],0),2),0)","v":"ZF-295"},{"$f":"IFERROR(INDEX(ListaČasova[],MATCH(SUMPRODUCT((ListaČasova[DAN]=RasporedČasova[[#Headers],[SREDA]])*(ROUNDDOWN($B19,10)>=ROUNDDOWN(ListaČasova[VREME POČETKA],10))*($B19<=ListaČasova[VREME ZAVRŠETKA]),ListaČasova[JEDINSTVENI]),ListaČasova[JEDINSTVENI],0),2),0)","v":0},{"$f":"IFERROR(INDEX(ListaČasova[],MATCH(SUMPRODUCT((ListaČasova[DAN]=RasporedČasova[[#Headers],[ČETVRTAK]])*(ROUNDDOWN($B19,10)>=ROUNDDOWN(ListaČasova[VREME POČETKA],10))*($B19<=ListaČasova[VREME ZAVRŠETKA]),ListaČasova[JEDINSTVENI]),ListaČasova[JEDINSTVENI],0),2),0)","v":"ZF-295"},{"$f":"IFERROR(INDEX(ListaČasova[],MATCH(SUMPRODUCT((ListaČasova[DAN]=RasporedČasova[[#Headers],[PETAK]])*(ROUNDDOWN($B19,10)>=ROUNDDOWN(ListaČasova[VREME POČETKA],10))*($B19<=ListaČasova[VREME ZAVRŠETKA]),ListaČasova[JEDINSTVENI]),ListaČasova[JEDINSTVENI],0),2),0)","v":0},{"$f":"IFERROR(INDEX(ListaČasova[],MATCH(SUMPRODUCT((ListaČasova[DAN]=RasporedČasova[[#Headers],[SUBOTA]])*(ROUNDDOWN($B19,10)>=ROUNDDOWN(ListaČasova[VREME POČETKA],10))*($B19<=ListaČasova[VREME ZAVRŠETKA]),ListaČasova[JEDINSTVENI]),ListaČasova[JEDINSTVENI],0),2),0)","v":0}]
[null,"12:00:00",{"$f":"IFERROR(INDEX(ListaČasova[],MATCH(SUMPRODUCT((ListaČasova[DAN]=RasporedČasova[[#Headers],[NEDELJA]])*(ROUNDDOWN($B20,10)>=ROUNDDOWN(ListaČasova[VREME POČETKA],10))*($B20<=ListaČasova[VREME ZAVRŠETKA]),ListaČasova[JEDINSTVENI]),ListaČasova[JEDINSTVENI],0),2),0)","v":0},{"$f":"IFERROR(INDEX(ListaČasova[],MATCH(SUMPRODUCT((ListaČasova[DAN]=RasporedČasova[[#Headers],[PONEDELJAK]])*(ROUNDDOWN($B20,10)>=ROUNDDOWN(ListaČasova[VREME POČETKA],10))*($B20<=ListaČasova[VREME ZAVRŠETKA]),ListaČasova[JEDINSTVENI]),ListaČasova[JEDINSTVENI],0),2),0)","v":0},{"$f":"IFERROR(INDEX(ListaČasova[],MATCH(SUMPRODUCT((ListaČasova[DAN]=RasporedČasova[[#Headers],[UTORAK]])*(ROUNDDOWN($B20,10)>=ROUNDDOWN(ListaČasova[VREME POČETKA],10))*($B20<=ListaČasova[VREME ZAVRŠETKA]),ListaČasova[JEDINSTVENI]),ListaČasova[JEDINSTVENI],0),2),0)","v":"ZF-295"},{"$f":"IFERROR(INDEX(ListaČasova[],MATCH(SUMPRODUCT((ListaČasova[DAN]=RasporedČasova[[#Headers],[SREDA]])*(ROUNDDOWN($B20,10)>=ROUNDDOWN(ListaČasova[VREME POČETKA],10))*($B20<=ListaČasova[VREME ZAVRŠETKA]),ListaČasova[JEDINSTVENI]),ListaČasova[JEDINSTVENI],0),2),0)","v":0},{"$f":"IFERROR(INDEX(ListaČasova[],MATCH(SUMPRODUCT((ListaČasova[DAN]=RasporedČasova[[#Headers],[ČETVRTAK]])*(ROUNDDOWN($B20,10)>=ROUNDDOWN(ListaČasova[VREME POČETKA],10))*($B20<=ListaČasova[VREME ZAVRŠETKA]),ListaČasova[JEDINSTVENI]),ListaČasova[JEDINSTVENI],0),2),0)","v":"ZF-295"},{"$f":"IFERROR(INDEX(ListaČasova[],MATCH(SUMPRODUCT((ListaČasova[DAN]=RasporedČasova[[#Headers],[PETAK]])*(ROUNDDOWN($B20,10)>=ROUNDDOWN(ListaČasova[VREME POČETKA],10))*($B20<=ListaČasova[VREME ZAVRŠETKA]),ListaČasova[JEDINSTVENI]),ListaČasova[JEDINSTVENI],0),2),0)","v":0},{"$f":"IFERROR(INDEX(ListaČasova[],MATCH(SUMPRODUCT((ListaČasova[DAN]=RasporedČasova[[#Headers],[SUBOTA]])*(ROUNDDOWN($B20,10)>=ROUNDDOWN(ListaČasova[VREME POČETKA],10))*($B20<=ListaČasova[VREME ZAVRŠETKA]),ListaČasova[JEDINSTVENI]),ListaČasova[JEDINSTVENI],0),2),0)","v":0}]
[null,"12:15:00",{"$f":"IFERROR(INDEX(ListaČasova[],MATCH(SUMPRODUCT((ListaČasova[DAN]=RasporedČasova[[#Headers],[NEDELJA]])*(ROUNDDOWN($B21,10)>=ROUNDDOWN(ListaČasova[VREME POČETKA],10))*($B21<=ListaČasova[VREME ZAVRŠETKA]),ListaČasova[JEDINSTVENI]),ListaČasova[JEDINSTVENI],0),2),0)","v":0},{"$f":"IFERROR(INDEX(ListaČasova[],MATCH(SUMPRODUCT((ListaČasova[DAN]=RasporedČasova[[#Headers],[PONEDELJAK]])*(ROUNDDOWN($B21,10)>=ROUNDDOWN(ListaČasova[VREME POČETKA],10))*($B21<=ListaČasova[VREME ZAVRŠETKA]),ListaČasova[JEDINSTVENI]),ListaČasova[JEDINSTVENI],0),2),0)","v":0},{"$f":"IFERROR(INDEX(ListaČasova[],MATCH(SUMPRODUCT((ListaČasova[DAN]=RasporedČasova[[#Headers],[UTORAK]])*(ROUNDDOWN($B21,10)>=ROUNDDOWN(ListaČasova[VREME POČETKA],10))*($B21<=ListaČasova[VREME ZAVRŠETKA]),ListaČasova[JEDINSTVENI]),ListaČasova[JEDINSTVENI],0),2),0)","v":0},{"$f":"IFERROR(INDEX(ListaČasova[],MATCH(SUMPRODUCT((ListaČasova[DAN]=RasporedČasova[[#Headers],[SREDA]])*(ROUNDDOWN($B21,10)>=ROUNDDOWN(ListaČasova[VREME POČETKA],10))*($B21<=ListaČasova[VREME ZAVRŠETKA]),ListaČasova[JEDINSTVENI]),ListaČasova[JEDINSTVENI],0),2),0)","v":0},{"$f":"IFERROR(INDEX(ListaČasova[],MATCH(SUMPRODUCT((ListaČasova[DAN]=RasporedČasova[[#Headers],[ČETVRTAK]])*(ROUNDDOWN($B21,10)>=ROUNDDOWN(ListaČasova[VREME POČETKA],10))*($B21<=ListaČasova[VREME ZAVRŠETKA]),ListaČasova[JEDINSTVENI]),ListaČasova[JEDINSTVENI],0),2),0)","v":0},{"$f":"IFERROR(INDEX(ListaČasova[],MATCH(SUMPRODUCT((ListaČasova[DAN]=RasporedČasova[[#Headers],[PETAK]])*(ROUNDDOWN($B21,10)>=ROUNDDOWN(ListaČasova[VREME POČETKA],10))*($B21<=ListaČasova[VREME ZAVRŠETKA]),ListaČasova[JEDINSTVENI]),ListaČasova[JEDINSTVENI],0),2),0)","v":0},{"$f":"IFERROR(INDEX(ListaČasova[],MATCH(SUMPRODUCT((ListaČasova[DAN]=RasporedČasova[[#Headers],[SUBOTA]])*(ROUNDDOWN($B21,10)>=ROUNDDOWN(ListaČasova[VREME POČETKA],10))*($B21<=ListaČasova[VREME ZAVRŠETKA]),ListaČasova[JEDINSTVENI]),ListaČasova[JEDINSTVENI],0),2),0)","v":0}]
[null,"12:30:00",{"$f":"IFERROR(INDEX(ListaČasova[],MATCH(SUMPRODUCT((ListaČasova[DAN]=RasporedČasova[[#Headers],[NEDELJA]])*(ROUNDDOWN($B22,10)>=ROUNDDOWN(ListaČasova[VREME POČETKA],10))*($B22<=ListaČasova[VREME ZAVRŠETKA]),ListaČasova[JEDINSTVENI]),ListaČasova[JEDINSTVENI],0),2),0)","v":0},{"$f":"IFERROR(INDEX(ListaČasova[],MATCH(SUMPRODUCT((ListaČasova[DAN]=RasporedČasova[[#Headers],[PONEDELJAK]])*(ROUNDDOWN($B22,10)>=ROUNDDOWN(ListaČasova[VREME POČETKA],10))*($B22<=ListaČasova[VREME ZAVRŠETKA]),ListaČasova[JEDINSTVENI]),ListaČasova[JEDINSTVENI],0),2),0)","v":0},{"$f":"IFERROR(INDEX(ListaČasova[],MATCH(SUMPRODUCT((ListaČasova[DAN]=RasporedČasova[[#Headers],[UTORAK]])*(ROUNDDOWN($B22,10)>=ROUNDDOWN(ListaČasova[VREME POČETKA],10))*($B22<=ListaČasova[VREME ZAVRŠETKA]),ListaČasova[JEDINSTVENI]),ListaČasova[JEDINSTVENI],0),2),0)","v":0},{"$f":"IFERROR(INDEX(ListaČasova[],MATCH(SUMPRODUCT((ListaČasova[DAN]=RasporedČasova[[#Headers],[SREDA]])*(ROUNDDOWN($B22,10)>=ROUNDDOWN(ListaČasova[VREME POČETKA],10))*($B22<=ListaČasova[VREME ZAVRŠETKA]),ListaČasova[JEDINSTVENI]),ListaČasova[JEDINSTVENI],0),2),0)","v":0},{"$f":"IFERROR(INDEX(ListaČasova[],MATCH(SUMPRODUCT((ListaČasova[DAN]=RasporedČasova[[#Headers],[ČETVRTAK]])*(ROUNDDOWN($B22,10)>=ROUNDDOWN(ListaČasova[VREME POČETKA],10))*($B22<=ListaČasova[VREME ZAVRŠETKA]),ListaČasova[JEDINSTVENI]),ListaČasova[JEDINSTVENI],0),2),0)","v":0},{"$f":"IFERROR(INDEX(ListaČasova[],MATCH(SUMPRODUCT((ListaČasova[DAN]=RasporedČasova[[#Headers],[PETAK]])*(ROUNDDOWN($B22,10)>=ROUNDDOWN(ListaČasova[VREME POČETKA],10))*($B22<=ListaČasova[VREME ZAVRŠETKA]),ListaČasova[JEDINSTVENI]),ListaČasova[JEDINSTVENI],0),2),0)","v":0},{"$f":"IFERROR(INDEX(ListaČasova[],MATCH(SUMPRODUCT((ListaČasova[DAN]=RasporedČasova[[#Headers],[SUBOTA]])*(ROUNDDOWN($B22,10)>=ROUNDDOWN(ListaČasova[VREME POČETKA],10))*($B22<=ListaČasova[VREME ZAVRŠETKA]),ListaČasova[JEDINSTVENI]),ListaČasova[JEDINSTVENI],0),2),0)","v":0}]
[null,"12:45:00",{"$f":"IFERROR(INDEX(ListaČasova[],MATCH(SUMPRODUCT((ListaČasova[DAN]=RasporedČasova[[#Headers],[NEDELJA]])*(ROUNDDOWN($B23,10)>=ROUNDDOWN(ListaČasova[VREME POČETKA],10))*($B23<=ListaČasova[VREME ZAVRŠETKA]),ListaČasova[JEDINSTVENI]),ListaČasova[JEDINSTVENI],0),2),0)","v":0},{"$f":"IFERROR(INDEX(ListaČasova[],MATCH(SUMPRODUCT((ListaČasova[DAN]=RasporedČasova[[#Headers],[PONEDELJAK]])*(ROUNDDOWN($B23,10)>=ROUNDDOWN(ListaČasova[VREME POČETKA],10))*($B23<=ListaČasova[VREME ZAVRŠETKA]),ListaČasova[JEDINSTVENI]),ListaČasova[JEDINSTVENI],0),2),0)","v":0},{"$f":"IFERROR(INDEX(ListaČasova[],MATCH(SUMPRODUCT((ListaČasova[DAN]=RasporedČasova[[#Headers],[UTORAK]])*(ROUNDDOWN($B23,10)>=ROUNDDOWN(ListaČasova[VREME POČETKA],10))*($B23<=ListaČasova[VREME ZAVRŠETKA]),ListaČasova[JEDINSTVENI]),ListaČasova[JEDINSTVENI],0),2),0)","v":0},{"$f":"IFERROR(INDEX(ListaČasova[],MATCH(SUMPRODUCT((ListaČasova[DAN]=RasporedČasova[[#Headers],[SREDA]])*(ROUNDDOWN($B23,10)>=ROUNDDOWN(ListaČasova[VREME POČETKA],10))*($B23<=ListaČasova[VREME ZAVRŠETKA]),ListaČasova[JEDINSTVENI]),ListaČasova[JEDINSTVENI],0),2),0)","v":0},{"$f":"IFERROR(INDEX(ListaČasova[],MATCH(SUMPRODUCT((ListaČasova[DAN]=RasporedČasova[[#Headers],[ČETVRTAK]])*(ROUNDDOWN($B23,10)>=ROUNDDOWN(ListaČasova[VREME POČETKA],10))*($B23<=ListaČasova[VREME ZAVRŠETKA]),ListaČasova[JEDINSTVENI]),ListaČasova[JEDINSTVENI],0),2),0)","v":0},{"$f":"IFERROR(INDEX(ListaČasova[],MATCH(SUMPRODUCT((ListaČasova[DAN]=RasporedČasova[[#Headers],[PETAK]])*(ROUNDDOWN($B23,10)>=ROUNDDOWN(ListaČasova[VREME POČETKA],10))*($B23<=ListaČasova[VREME ZAVRŠETKA]),ListaČasova[JEDINSTVENI]),ListaČasova[JEDINSTVENI],0),2),0)","v":0},{"$f":"IFERROR(INDEX(ListaČasova[],MATCH(SUMPRODUCT((ListaČasova[DAN]=RasporedČasova[[#Headers],[SUBOTA]])*(ROUNDDOWN($B23,10)>=ROUNDDOWN(ListaČasova[VREME POČETKA],10))*($B23<=ListaČasova[VREME ZAVRŠETKA]),ListaČasova[JEDINSTVENI]),ListaČasova[JEDINSTVENI],0),2),0)","v":0}]
[null,"13:00:00",{"$f":"IFERROR(INDEX(ListaČasova[],MATCH(SUMPRODUCT((ListaČasova[DAN]=RasporedČasova[[#Headers],[NEDELJA]])*(ROUNDDOWN($B24,10)>=ROUNDDOWN(ListaČasova[VREME POČETKA],10))*($B24<=ListaČasova[VREME ZAVRŠETKA]),ListaČasova[JEDINSTVENI]),ListaČasova[JEDINSTVENI],0),2),0)","v":0},{"$f":"IFERROR(INDEX(ListaČasova[],MATCH(SUMPRODUCT((ListaČasova[DAN]=RasporedČasova[[#Headers],[PONEDELJAK]])*(ROUNDDOWN($B24,10)>=ROUNDDOWN(ListaČasova[VREME POČETKA],10))*($B24<=ListaČasova[VREME ZAVRŠETKA]),ListaČasova[JEDINSTVENI]),ListaČasova[JEDINSTVENI],0),2),0)","v":"TP-121"},{"$f":"IFERROR(INDEX(ListaČasova[],MATCH(SUMPRODUCT((ListaČasova[DAN]=RasporedČasova[[#Headers],[UTORAK]])*(ROUNDDOWN($B24,10)>=ROUNDDOWN(ListaČasova[VREME POČETKA],10))*($B24<=ListaČasova[VREME ZAVRŠETKA]),ListaČasova[JEDINSTVENI]),ListaČasova[JEDINSTVENI],0),2),0)","v":0},{"$f":"IFERROR(INDEX(ListaČasova[],MATCH(SUMPRODUCT((ListaČasova[DAN]=RasporedČasova[[#Headers],[SREDA]])*(ROUNDDOWN($B24,10)>=ROUNDDOWN(ListaČasova[VREME POČETKA],10))*($B24<=ListaČasova[VREME ZAVRŠETKA]),ListaČasova[JEDINSTVENI]),ListaČasova[JEDINSTVENI],0),2),0)","v":"TP-121"},{"$f":"IFERROR(INDEX(ListaČasova[],MATCH(SUMPRODUCT((ListaČasova[DAN]=RasporedČasova[[#Headers],[ČETVRTAK]])*(ROUNDDOWN($B24,10)>=ROUNDDOWN(ListaČasova[VREME POČETKA],10))*($B24<=ListaČasova[VREME ZAVRŠETKA]),ListaČasova[JEDINSTVENI]),ListaČasova[JEDINSTVENI],0),2),0)","v":0},{"$f":"IFERROR(INDEX(ListaČasova[],MATCH(SUMPRODUCT((ListaČasova[DAN]=RasporedČasova[[#Headers],[PETAK]])*(ROUNDDOWN($B24,10)>=ROUNDDOWN(ListaČasova[VREME POČETKA],10))*($B24<=ListaČasova[VREME ZAVRŠETKA]),ListaČasova[JEDINSTVENI]),ListaČasova[JEDINSTVENI],0),2),0)","v":0},{"$f":"IFERROR(INDEX(ListaČasova[],MATCH(SUMPRODUCT((ListaČasova[DAN]=RasporedČasova[[#Headers],[SUBOTA]])*(ROUNDDOWN($B24,10)>=ROUNDDOWN(ListaČasova[VREME POČETKA],10))*($B24<=ListaČasova[VREME ZAVRŠETKA]),ListaČasova[JEDINSTVENI]),ListaČasova[JEDINSTVENI],0),2),0)","v":0}]
[null,"13:15:00",{"$f":"IFERROR(INDEX(ListaČasova[],MATCH(SUMPRODUCT((ListaČasova[DAN]=RasporedČasova[[#Headers],[NEDELJA]])*(ROUNDDOWN($B25,10)>=ROUNDDOWN(ListaČasova[VREME POČETKA],10))*($B25<=ListaČasova[VREME ZAVRŠETKA]),ListaČasova[JEDINSTVENI]),ListaČasova[JEDINSTVENI],0),2),0)","v":0},{"$f":"IFERROR(INDEX(ListaČasova[],MATCH(SUMPRODUCT((ListaČasova[DAN]=RasporedČasova[[#Headers],[PONEDELJAK]])*(ROUNDDOWN($B25,10)>=ROUNDDOWN(ListaČasova[VREME POČETKA],10))*($B25<=ListaČasova[VREME ZAVRŠETKA]),ListaČasova[JEDINSTVENI]),ListaČasova[JEDINSTVENI],0),2),0)","v":"TP-121"},{"$f":"IFERROR(INDEX(ListaČasova[],MATCH(SUMPRODUCT((ListaČasova[DAN]=RasporedČasova[[#Headers],[UTORAK]])*(ROUNDDOWN($B25,10)>=ROUNDDOWN(ListaČasova[VREME POČETKA],10))*($B25<=ListaČasova[VREME ZAVRŠETKA]),ListaČasova[JEDINSTVENI]),ListaČasova[JEDINSTVENI],0),2),0)","v":0},{"$f":"IFERROR(INDEX(ListaČasova[],MATCH(SUMPRODUCT((ListaČasova[DAN]=RasporedČasova[[#Headers],[SREDA]])*(ROUNDDOWN($B25,10)>=ROUNDDOWN(ListaČasova[VREME POČETKA],10))*($B25<=ListaČasova[VREME ZAVRŠETKA]),ListaČasova[JEDINSTVENI]),ListaČasova[JEDINSTVENI],0),2),0)","v":"TP-121"},{"$f":"IFERROR(INDEX(ListaČasova[],MATCH(SUMPRODUCT((ListaČasova[DAN]=RasporedČasova[[#Headers],[ČETVRTAK]])*(ROUNDDOWN($B25,10)>=ROUNDDOWN(ListaČasova[VREME POČETKA],10))*($B25<=ListaČasova[VREME ZAVRŠETKA]),ListaČasova[JEDINSTVENI]),ListaČasova[JEDINSTVENI],0),2),0)","v":0},{"$f":"IFERROR(INDEX(ListaČasova[],MATCH(SUMPRODUCT((ListaČasova[DAN]=RasporedČasova[[#Headers],[PETAK]])*(ROUNDDOWN($B25,10)>=ROUNDDOWN(ListaČasova[VREME POČETKA],10))*($B25<=ListaČasova[VREME ZAVRŠETKA]),ListaČasova[JEDINSTVENI]),ListaČasova[JEDINSTVENI],0),2),0)","v":0},{"$f":"IFERROR(INDEX(ListaČasova[],MATCH(SUMPRODUCT((ListaČasova[DAN]=RasporedČasova[[#Headers],[SUBOTA]])*(ROUNDDOWN($B25,10)>=ROUNDDOWN(ListaČasova[VREME POČETKA],10))*($B25<=ListaČasova[VREME ZAVRŠETKA]),ListaČasova[JEDINSTVENI]),ListaČasova[JEDINSTVENI],0),2),0)","v":0}]
[null,"13:30:00",{"$f":"IFERROR(INDEX(ListaČasova[],MATCH(SUMPRODUCT((ListaČasova[DAN]=RasporedČasova[[#Headers],[NEDELJA]])*(ROUNDDOWN($B26,10)>=ROUNDDOWN(ListaČasova[VREME POČETKA],10))*($B26<=ListaČasova[VREME ZAVRŠETKA]),ListaČasova[JEDINSTVENI]),ListaČasova[JEDINSTVENI],0),2),0)","v":0},{"$f":"IFERROR(INDEX(ListaČasova[],MATCH(SUMPRODUCT((ListaČasova[DAN]=RasporedČasova[[#Headers],[PONEDELJAK]])*(ROUNDDOWN($B26,10)>=ROUNDDOWN(ListaČasova[VREME POČETKA],10))*($B26<=ListaČasova[VREME ZAVRŠETKA]),ListaČasova[JEDINSTVENI]),ListaČasova[JEDINSTVENI],0),2),0)","v":"TP-121"},{"$f":"IFERROR(INDEX(ListaČasova[],MATCH(SUMPRODUCT((ListaČasova[DAN]=RasporedČasova[[#Headers],[UTORAK]])*(ROUNDDOWN($B26,10)>=ROUNDDOWN(ListaČasova[VREME POČETKA],10))*($B26<=ListaČasova[VREME ZAVRŠETKA]),ListaČasova[JEDINSTVENI]),ListaČasova[JEDINSTVENI],0),2),0)","v":0},{"$f":"IFERROR(INDEX(ListaČasova[],MATCH(SUMPRODUCT((ListaČasova[DAN]=RasporedČasova[[#Headers],[SREDA]])*(ROUNDDOWN($B26,10)>=ROUNDDOWN(ListaČasova[VREME POČETKA],10))*($B26<=ListaČasova[VREME ZAVRŠETKA]),ListaČasova[JEDINSTVENI]),ListaČasova[JEDINSTVENI],0),2),0)","v":"TP-121"},{"$f":"IFERROR(INDEX(ListaČasova[],MATCH(SUMPRODUCT((ListaČasova[DAN]=RasporedČasova[[#Headers],[ČETVRTAK]])*(ROUNDDOWN($B26,10)>=ROUNDDOWN(ListaČasova[VREME POČETKA],10))*($B26<=ListaČasova[VREME ZAVRŠETKA]),ListaČasova[JEDINSTVENI]),ListaČasova[JEDINSTVENI],0),2),0)","v":0},{"$f":"IFERROR(INDEX(ListaČasova[],MATCH(SUMPRODUCT((ListaČasova[DAN]=RasporedČasova[[#Headers],[PETAK]])*(ROUNDDOWN($B26,10)>=ROUNDDOWN(ListaČasova[VREME POČETKA],10))*($B26<=ListaČasova[VREME ZAVRŠETKA]),ListaČasova[JEDINSTVENI]),ListaČasova[JEDINSTVENI],0),2),0)","v":0},{"$f":"IFERROR(INDEX(ListaČasova[],MATCH(SUMPRODUCT((ListaČasova[DAN]=RasporedČasova[[#Headers],[SUBOTA]])*(ROUNDDOWN($B26,10)>=ROUNDDOWN(ListaČasova[VREME POČETKA],10))*($B26<=ListaČasova[VREME ZAVRŠETKA]),ListaČasova[JEDINSTVENI]),ListaČasova[JEDINSTVENI],0),2),0)","v":0}]
[null,"13:45:00",{"$f":"IFERROR(INDEX(ListaČasova[],MATCH(SUMPRODUCT((ListaČasova[DAN]=RasporedČasova[[#Headers],[NEDELJA]])*(ROUNDDOWN($B27,10)>=ROUNDDOWN(ListaČasova[VREME POČETKA],10))*($B27<=ListaČasova[VREME ZAVRŠETKA]),ListaČasova[JEDINSTVENI]),ListaČasova[JEDINSTVENI],0),2),0)","v":0},{"$f":"IFERROR(INDEX(ListaČasova[],MATCH(SUMPRODUCT((ListaČasova[DAN]=RasporedČasova[[#Headers],[PONEDELJAK]])*(ROUNDDOWN($B27,10)>=ROUNDDOWN(ListaČasova[VREME POČETKA],10))*($B27<=ListaČasova[VREME ZAVRŠETKA]),ListaČasova[JEDINSTVENI]),ListaČasova[JEDINSTVENI],0),2),0)","v":"TP-121"},{"$f":"IFERROR(INDEX(ListaČasova[],MATCH(SUMPRODUCT((ListaČasova[DAN]=RasporedČasova[[#Headers],[UTORAK]])*(ROUNDDOWN($B27,10)>=ROUNDDOWN(ListaČasova[VREME POČETKA],10))*($B27<=ListaČasova[VREME ZAVRŠETKA]),ListaČasova[JEDINSTVENI]),ListaČasova[JEDINSTVENI],0),2),0)","v":0},{"$f":"IFERROR(INDEX(ListaČasova[],MATCH(SUMPRODUCT((ListaČasova[DAN]=RasporedČasova[[#Headers],[SREDA]])*(ROUNDDOWN($B27,10)>=ROUNDDOWN(ListaČasova[VREME POČETKA],10))*($B27<=ListaČasova[VREME ZAVRŠETKA]),ListaČasova[JEDINSTVENI]),ListaČasova[JEDINSTVENI],0),2),0)","v":"TP-121"},{"$f":"IFERROR(INDEX(ListaČasova[],MATCH(SUMPRODUCT((ListaČasova[DAN]=RasporedČasova[[#Headers],[ČETVRTAK]])*(ROUNDDOWN($B27,10)>=ROUNDDOWN(ListaČasova[VREME POČETKA],10))*($B27<=ListaČasova[VREME ZAVRŠETKA]),ListaČasova[JEDINSTVENI]),ListaČasova[JEDINSTVENI],0),2),0)","v":0},{"$f":"IFERROR(INDEX(ListaČasova[],MATCH(SUMPRODUCT((ListaČasova[DAN]=RasporedČasova[[#Headers],[PETAK]])*(ROUNDDOWN($B27,10)>=ROUNDDOWN(ListaČasova[VREME POČETKA],10))*($B27<=ListaČasova[VREME ZAVRŠETKA]),ListaČasova[JEDINSTVENI]),ListaČasova[JEDINSTVENI],0),2),0)","v":0},{"$f":"IFERROR(INDEX(ListaČasova[],MATCH(SUMPRODUCT((ListaČasova[DAN]=RasporedČasova[[#Headers],[SUBOTA]])*(ROUNDDOWN($B27,10)>=ROUNDDOWN(ListaČasova[VREME POČETKA],10))*($B27<=ListaČasova[VREME ZAVRŠETKA]),ListaČasova[JEDINSTVENI]),ListaČasova[JEDINSTVENI],0),2),0)","v":0}]
[null,"14:00:00",{"$f":"IFERROR(INDEX(ListaČasova[],MATCH(SUMPRODUCT((ListaČasova[DAN]=RasporedČasova[[#Headers],[NEDELJA]])*(ROUNDDOWN($B28,10)>=ROUNDDOWN(ListaČasova[VREME POČETKA],10))*($B28<=ListaČasova[VREME ZAVRŠETKA]),ListaČasova[JEDINSTVENI]),ListaČasova[JEDINSTVENI],0),2),0)","v":0},{"$f":"IFERROR(INDEX(ListaČasova[],MATCH(SUMPRODUCT((ListaČasova[DAN]=RasporedČasova[[#Headers],[PONEDELJAK]])*(ROUNDDOWN($B28,10)>=ROUNDDOWN(ListaČasova[VREME POČETKA],10))*($B28<=ListaČasova[VREME ZAVRŠETKA]),ListaČasova[JEDINSTVENI]),ListaČasova[JEDINSTVENI],0),2),0)","v":"TP-121"},{"$f":"IFERROR(INDEX(ListaČasova[],MATCH(SUMPRODUCT((ListaČasova[DAN]=RasporedČasova[[#Headers],[UTORAK]])*(ROUNDDOWN($B28,10)>=ROUNDDOWN(ListaČasova[VREME POČETKA],10))*($B28<=ListaČasova[VREME ZAVRŠETKA]),ListaČasova[JEDINSTVENI]),ListaČasova[JEDINSTVENI],0),2),0)","v":0},{"$f":"IFERROR(INDEX(ListaČasova[],MATCH(SUMPRODUCT((ListaČasova[DAN]=RasporedČasova[[#Headers],[SREDA]])*(ROUNDDOWN($B28,10)>=ROUNDDOWN(ListaČasova[VREME POČETKA],10))*($B28<=ListaČasova[VREME ZAVRŠETKA]),ListaČasova[JEDINSTVENI]),ListaČasova[JEDINSTVENI],0),2),0)","v":"TP-121"},{"$f":"IFERROR(INDEX(ListaČasova[],MATCH(SUMPRODUCT((ListaČasova[DAN]=RasporedČasova[[#Headers],[ČETVRTAK]])*(ROUNDDOWN($B28,10)>=ROUNDDOWN(ListaČasova[VREME POČETKA],10))*($B28<=ListaČasova[VREME ZAVRŠETKA]),ListaČasova[JEDINSTVENI]),ListaČasova[JEDINSTVENI],0),2),0)","v":0},{"$f":"IFERROR(INDEX(ListaČasova[],MATCH(SUMPRODUCT((ListaČasova[DAN]=RasporedČasova[[#Headers],[PETAK]])*(ROUNDDOWN($B28,10)>=ROUNDDOWN(ListaČasova[VREME POČETKA],10))*($B28<=ListaČasova[VREME ZAVRŠETKA]),ListaČasova[JEDINSTVENI]),ListaČasova[JEDINSTVENI],0),2),0)","v":0},{"$f":"IFERROR(INDEX(ListaČasova[],MATCH(SUMPRODUCT((ListaČasova[DAN]=RasporedČasova[[#Headers],[SUBOTA]])*(ROUNDDOWN($B28,10)>=ROUNDDOWN(ListaČasova[VREME POČETKA],10))*($B28<=ListaČasova[VREME ZAVRŠETKA]),ListaČasova[JEDINSTVENI]),ListaČasova[JEDINSTVENI],0),2),0)","v":0}]
[null,"14:15:00",{"$f":"IFERROR(INDEX(ListaČasova[],MATCH(SUMPRODUCT((ListaČasova[DAN]=RasporedČasova[[#Headers],[NEDELJA]])*(ROUNDDOWN($B29,10)>=ROUNDDOWN(ListaČasova[VREME POČETKA],10))*($B29<=ListaČasova[VREME ZAVRŠETKA]),ListaČasova[JEDINSTVENI]),ListaČasova[JEDINSTVENI],0),2),0)","v":0},{"$f":"IFERROR(INDEX(ListaČasova[],MATCH(SUMPRODUCT((ListaČasova[DAN]=RasporedČasova[[#Headers],[PONEDELJAK]])*(ROUNDDOWN($B29,10)>=ROUNDDOWN(ListaČasova[VREME POČETKA],10))*($B29<=ListaČasova[VREME ZAVRŠETKA]),ListaČasova[JEDINSTVENI]),ListaČasova[JEDINSTVENI],0),2),0)","v":0},{"$f":"IFERROR(INDEX(ListaČasova[],MATCH(SUMPRODUCT((ListaČasova[DAN]=RasporedČasova[[#Headers],[UTORAK]])*(ROUNDDOWN($B29,10)>=ROUNDDOWN(ListaČasova[VREME POČETKA],10))*($B29<=ListaČasova[VREME ZAVRŠETKA]),ListaČasova[JEDINSTVENI]),ListaČasova[JEDINSTVENI],0),2),0)","v":0},{"$f":"IFERROR(INDEX(ListaČasova[],MATCH(SUMPRODUCT((ListaČasova[DAN]=RasporedČasova[[#Headers],[SREDA]])*(ROUNDDOWN($B29,10)>=ROUNDDOWN(ListaČasova[VREME POČETKA],10))*($B29<=ListaČasova[VREME ZAVRŠETKA]),ListaČasova[JEDINSTVENI]),ListaČasova[JEDINSTVENI],0),2),0)","v":0},{"$f":"IFERROR(INDEX(ListaČasova[],MATCH(SUMPRODUCT((ListaČasova[DAN]=RasporedČasova[[#Headers],[ČETVRTAK]])*(ROUNDDOWN($B29,10)>=ROUNDDOWN(ListaČasova[VREME POČETKA],10))*($B29<=ListaČasova[VREME ZAVRŠETKA]),ListaČasova[JEDINSTVENI]),ListaČasova[JEDINSTVENI],0),2),0)","v":0},{"$f":"IFERROR(INDEX(ListaČasova[],MATCH(SUMPRODUCT((ListaČasova[DAN]=RasporedČasova[[#Headers],[PETAK]])*(ROUNDDOWN($B29,10)>=ROUNDDOWN(ListaČasova[VREME POČETKA],10))*($B29<=ListaČasova[VREME ZAVRŠETKA]),ListaČasova[JEDINSTVENI]),ListaČasova[JEDINSTVENI],0),2),0)","v":0},{"$f":"IFERROR(INDEX(ListaČasova[],MATCH(SUMPRODUCT((ListaČasova[DAN]=RasporedČasova[[#Headers],[SUBOTA]])*(ROUNDDOWN($B29,10)>=ROUNDDOWN(ListaČasova[VREME POČETKA],10))*($B29<=ListaČasova[VREME ZAVRŠETKA]),ListaČasova[JEDINSTVENI]),ListaČasova[JEDINSTVENI],0),2),0)","v":0}]
[null,"14:30:00",{"$f":"IFERROR(INDEX(ListaČasova[],MATCH(SUMPRODUCT((ListaČasova[DAN]=RasporedČasova[[#Headers],[NEDELJA]])*(ROUNDDOWN($B30,10)>=ROUNDDOWN(ListaČasova[VREME POČETKA],10))*($B30<=ListaČasova[VREME ZAVRŠETKA]),ListaČasova[JEDINSTVENI]),ListaČasova[JEDINSTVENI],0),2),0)","v":0},{"$f":"IFERROR(INDEX(ListaČasova[],MATCH(SUMPRODUCT((ListaČasova[DAN]=RasporedČasova[[#Headers],[PONEDELJAK]])*(ROUNDDOWN($B30,10)>=ROUNDDOWN(ListaČasova[VREME POČETKA],10))*($B30<=ListaČasova[VREME ZAVRŠETKA]),ListaČasova[JEDINSTVENI]),ListaČasova[JEDINSTVENI],0),2),0)","v":0},{"$f":"IFERROR(INDEX(ListaČasova[],MATCH(SUMPRODUCT((ListaČasova[DAN]=RasporedČasova[[#Headers],[UTORAK]])*(ROUNDDOWN($B30,10)>=ROUNDDOWN(ListaČasova[VREME POČETKA],10))*($B30<=ListaČasova[VREME ZAVRŠETKA]),ListaČasova[JEDINSTVENI]),ListaČasova[JEDINSTVENI],0),2),0)","v":0},{"$f":"IFERROR(INDEX(ListaČasova[],MATCH(SUMPRODUCT((ListaČasova[DAN]=RasporedČasova[[#Headers],[SREDA]])*(ROUNDDOWN($B30,10)>=ROUNDDOWN(ListaČasova[VREME POČETKA],10))*($B30<=ListaČasova[VREME ZAVRŠETKA]),ListaČasova[JEDINSTVENI]),ListaČasova[JEDINSTVENI],0),2),0)","v":0},{"$f":"IFERROR(INDEX(ListaČasova[],MATCH(SUMPRODUCT((ListaČasova[DAN]=RasporedČasova[[#Headers],[ČETVRTAK]])*(ROUNDDOWN($B30,10)>=ROUNDDOWN(ListaČasova[VREME POČETKA],10))*($B30<=ListaČasova[VREME ZAVRŠETKA]),ListaČasova[JEDINSTVENI]),ListaČasova[JEDINSTVENI],0),2),0)","v":0},{"$f":"IFERROR(INDEX(ListaČasova[],MATCH(SUMPRODUCT((ListaČasova[DAN]=RasporedČasova[[#Headers],[PETAK]])*(ROUNDDOWN($B30,10)>=ROUNDDOWN(ListaČasova[VREME POČETKA],10))*($B30<=ListaČasova[VREME ZAVRŠETKA]),ListaČasova[JEDINSTVENI]),ListaČasova[JEDINSTVENI],0),2),0)","v":0},{"$f":"IFERROR(INDEX(ListaČasova[],MATCH(SUMPRODUCT((ListaČasova[DAN]=RasporedČasova[[#Headers],[SUBOTA]])*(ROUNDDOWN($B30,10)>=ROUNDDOWN(ListaČasova[VREME POČETKA],10))*($B30<=ListaČasova[VREME ZAVRŠETKA]),ListaČasova[JEDINSTVENI]),ListaČasova[JEDINSTVENI],0),2),0)","v":0}]
[null,"14:45:00",{"$f":"IFERROR(INDEX(ListaČasova[],MATCH(SUMPRODUCT((ListaČasova[DAN]=RasporedČasova[[#Headers],[NEDELJA]])*(ROUNDDOWN($B31,10)>=ROUNDDOWN(ListaČasova[VREME POČETKA],10))*($B31<=ListaČasova[VREME ZAVRŠETKA]),ListaČasova[JEDINSTVENI]),ListaČasova[JEDINSTVENI],0),2),0)","v":0},{"$f":"IFERROR(INDEX(ListaČasova[],MATCH(SUMPRODUCT((ListaČasova[DAN]=RasporedČasova[[#Headers],[PONEDELJAK]])*(ROUNDDOWN($B31,10)>=ROUNDDOWN(ListaČasova[VREME POČETKA],10))*($B31<=ListaČasova[VREME ZAVRŠETKA]),ListaČasova[JEDINSTVENI]),ListaČasova[JEDINSTVENI],0),2),0)","v":0},{"$f":"IFERROR(INDEX(ListaČasova[],MATCH(SUMPRODUCT((ListaČasova[DAN]=RasporedČasova[[#Headers],[UTORAK]])*(ROUNDDOWN($B31,10)>=ROUNDDOWN(ListaČasova[VREME POČETKA],10))*($B31<=ListaČasova[VREME ZAVRŠETKA]),ListaČasova[JEDINSTVENI]),ListaČasova[JEDINSTVENI],0),2),0)","v":0},{"$f":"IFERROR(INDEX(ListaČasova[],MATCH(SUMPRODUCT((ListaČasova[DAN]=RasporedČasova[[#Headers],[SREDA]])*(ROUNDDOWN($B31,10)>=ROUNDDOWN(ListaČasova[VREME POČETKA],10))*($B31<=ListaČasova[VREME ZAVRŠETKA]),ListaČasova[JEDINSTVENI]),ListaČasova[JEDINSTVENI],0),2),0)","v":0},{"$f":"IFERROR(INDEX(ListaČasova[],MATCH(SUMPRODUCT((ListaČasova[DAN]=RasporedČasova[[#Headers],[ČETVRTAK]])*(ROUNDDOWN($B31,10)>=ROUNDDOWN(ListaČasova[VREME POČETKA],10))*($B31<=ListaČasova[VREME ZAVRŠETKA]),ListaČasova[JEDINSTVENI]),ListaČasova[JEDINSTVENI],0),2),0)","v":0},{"$f":"IFERROR(INDEX(ListaČasova[],MATCH(SUMPRODUCT((ListaČasova[DAN]=RasporedČasova[[#Headers],[PETAK]])*(ROUNDDOWN($B31,10)>=ROUNDDOWN(ListaČasova[VREME POČETKA],10))*($B31<=ListaČasova[VREME ZAVRŠETKA]),ListaČasova[JEDINSTVENI]),ListaČasova[JEDINSTVENI],0),2),0)","v":0},{"$f":"IFERROR(INDEX(ListaČasova[],MATCH(SUMPRODUCT((ListaČasova[DAN]=RasporedČasova[[#Headers],[SUBOTA]])*(ROUNDDOWN($B31,10)>=ROUNDDOWN(ListaČasova[VREME POČETKA],10))*($B31<=ListaČasova[VREME ZAVRŠETKA]),ListaČasova[JEDINSTVENI]),ListaČasova[JEDINSTVENI],0),2),0)","v":0}]
[null,"15:00:00",{"$f":"IFERROR(INDEX(ListaČasova[],MATCH(SUMPRODUCT((ListaČasova[DAN]=RasporedČasova[[#Headers],[NEDELJA]])*(ROUNDDOWN($B32,10)>=ROUNDDOWN(ListaČasova[VREME POČETKA],10))*($B32<=ListaČasova[VREME ZAVRŠETKA]),ListaČasova[JEDINSTVENI]),ListaČasova[JEDINSTVENI],0),2),0)","v":0},{"$f":"IFERROR(INDEX(ListaČasova[],MATCH(SUMPRODUCT((ListaČasova[DAN]=RasporedČasova[[#Headers],[PONEDELJAK]])*(ROUNDDOWN($B32,10)>=ROUNDDOWN(ListaČasova[VREME POČETKA],10))*($B32<=ListaČasova[VREME ZAVRŠETKA]),ListaČasova[JEDINSTVENI]),ListaČasova[JEDINSTVENI],0),2),0)","v":0},{"$f":"IFERROR(INDEX(ListaČasova[],MATCH(SUMPRODUCT((ListaČasova[DAN]=RasporedČasova[[#Headers],[UTORAK]])*(ROUNDDOWN($B32,10)>=ROUNDDOWN(ListaČasova[VREME POČETKA],10))*($B32<=ListaČasova[VREME ZAVRŠETKA]),ListaČasova[JEDINSTVENI]),ListaČasova[JEDINSTVENI],0),2),0)","v":0},{"$f":"IFERROR(INDEX(ListaČasova[],MATCH(SUMPRODUCT((ListaČasova[DAN]=RasporedČasova[[#Headers],[SREDA]])*(ROUNDDOWN($B32,10)>=ROUNDDOWN(ListaČasova[VREME POČETKA],10))*($B32<=ListaČasova[VREME ZAVRŠETKA]),ListaČasova[JEDINSTVENI]),ListaČasova[JEDINSTVENI],0),2),0)","v":0},{"$f":"IFERROR(INDEX(ListaČasova[],MATCH(SUMPRODUCT((ListaČasova[DAN]=RasporedČasova[[#Headers],[ČETVRTAK]])*(ROUNDDOWN($B32,10)>=ROUNDDOWN(ListaČasova[VREME POČETKA],10))*($B32<=ListaČasova[VREME ZAVRŠETKA]),ListaČasova[JEDINSTVENI]),ListaČasova[JEDINSTVENI],0),2),0)","v":0},{"$f":"IFERROR(INDEX(ListaČasova[],MATCH(SUMPRODUCT((ListaČasova[DAN]=RasporedČasova[[#Headers],[PETAK]])*(ROUNDDOWN($B32,10)>=ROUNDDOWN(ListaČasova[VREME POČETKA],10))*($B32<=ListaČasova[VREME ZAVRŠETKA]),ListaČasova[JEDINSTVENI]),ListaČasova[JEDINSTVENI],0),2),0)","v":0},{"$f":"IFERROR(INDEX(ListaČasova[],MATCH(SUMPRODUCT((ListaČasova[DAN]=RasporedČasova[[#Headers],[SUBOTA]])*(ROUNDDOWN($B32,10)>=ROUNDDOWN(ListaČasova[VREME POČETKA],10))*($B32<=ListaČasova[VREME ZAVRŠETKA]),ListaČasova[JEDINSTVENI]),ListaČasova[JEDINSTVENI],0),2),0)","v":0}]
[null,"15:15:00",{"$f":"IFERROR(INDEX(ListaČasova[],MATCH(SUMPRODUCT((ListaČasova[DAN]=RasporedČasova[[#Headers],[NEDELJA]])*(ROUNDDOWN($B33,10)>=ROUNDDOWN(ListaČasova[VREME POČETKA],10))*($B33<=ListaČasova[VREME ZAVRŠETKA]),ListaČasova[JEDINSTVENI]),ListaČasova[JEDINSTVENI],0),2),0)","v":0},{"$f":"IFERROR(INDEX(ListaČasova[],MATCH(SUMPRODUCT((ListaČasova[DAN]=RasporedČasova[[#Headers],[PONEDELJAK]])*(ROUNDDOWN($B33,10)>=ROUNDDOWN(ListaČasova[VREME POČETKA],10))*($B33<=ListaČasova[VREME ZAVRŠETKA]),ListaČasova[JEDINSTVENI]),ListaČasova[JEDINSTVENI],0),2),0)","v":0},{"$f":"IFERROR(INDEX(ListaČasova[],MATCH(SUMPRODUCT((ListaČasova[DAN]=RasporedČasova[[#Headers],[UTORAK]])*(ROUNDDOWN($B33,10)>=ROUNDDOWN(ListaČasova[VREME POČETKA],10))*($B33<=ListaČasova[VREME ZAVRŠETKA]),ListaČasova[JEDINSTVENI]),ListaČasova[JEDINSTVENI],0),2),0)","v":0},{"$f":"IFERROR(INDEX(ListaČasova[],MATCH(SUMPRODUCT((ListaČasova[DAN]=RasporedČasova[[#Headers],[SREDA]])*(ROUNDDOWN($B33,10)>=ROUNDDOWN(ListaČasova[VREME POČETKA],10))*($B33<=ListaČasova[VREME ZAVRŠETKA]),ListaČasova[JEDINSTVENI]),ListaČasova[JEDINSTVENI],0),2),0)","v":0},{"$f":"IFERROR(INDEX(ListaČasova[],MATCH(SUMPRODUCT((ListaČasova[DAN]=RasporedČasova[[#Headers],[ČETVRTAK]])*(ROUNDDOWN($B33,10)>=ROUNDDOWN(ListaČasova[VREME POČETKA],10))*($B33<=ListaČasova[VREME ZAVRŠETKA]),ListaČasova[JEDINSTVENI]),ListaČasova[JEDINSTVENI],0),2),0)","v":0},{"$f":"IFERROR(INDEX(ListaČasova[],MATCH(SUMPRODUCT((ListaČasova[DAN]=RasporedČasova[[#Headers],[PETAK]])*(ROUNDDOWN($B33,10)>=ROUNDDOWN(ListaČasova[VREME POČETKA],10))*($B33<=ListaČasova[VREME ZAVRŠETKA]),ListaČasova[JEDINSTVENI]),ListaČasova[JEDINSTVENI],0),2),0)","v":0},{"$f":"IFERROR(INDEX(ListaČasova[],MATCH(SUMPRODUCT((ListaČasova[DAN]=RasporedČasova[[#Headers],[SUBOTA]])*(ROUNDDOWN($B33,10)>=ROUNDDOWN(ListaČasova[VREME POČETKA],10))*($B33<=ListaČasova[VREME ZAVRŠETKA]),ListaČasova[JEDINSTVENI]),ListaČasova[JEDINSTVENI],0),2),0)","v":0}]
[null,"15:30:00",{"$f":"IFERROR(INDEX(ListaČasova[],MATCH(SUMPRODUCT((ListaČasova[DAN]=RasporedČasova[[#Headers],[NEDELJA]])*(ROUNDDOWN($B34,10)>=ROUNDDOWN(ListaČasova[VREME POČETKA],10))*($B34<=ListaČasova[VREME ZAVRŠETKA]),ListaČasova[JEDINSTVENI]),ListaČasova[JEDINSTVENI],0),2),0)","v":0},{"$f":"IFERROR(INDEX(ListaČasova[],MATCH(SUMPRODUCT((ListaČasova[DAN]=RasporedČasova[[#Headers],[PONEDELJAK]])*(ROUNDDOWN($B34,10)>=ROUNDDOWN(ListaČasova[VREME POČETKA],10))*($B34<=ListaČasova[VREME ZAVRŠETKA]),ListaČasova[JEDINSTVENI]),ListaČasova[JEDINSTVENI],0),2),0)","v":0},{"$f":"IFERROR(INDEX(ListaČasova[],MATCH(SUMPRODUCT((ListaČasova[DAN]=RasporedČasova[[#Headers],[UTORAK]])*(ROUNDDOWN($B34,10)>=ROUNDDOWN(ListaČasova[VREME POČETKA],10))*($B34<=ListaČasova[VREME ZAVRŠETKA]),ListaČasova[JEDINSTVENI]),ListaČasova[JEDINSTVENI],0),2),0)","v":0},{"$f":"IFERROR(INDEX(ListaČasova[],MATCH(SUMPRODUCT((ListaČasova[DAN]=RasporedČasova[[#Headers],[SREDA]])*(ROUNDDOWN($B34,10)>=ROUNDDOWN(ListaČasova[VREME POČETKA],10))*($B34<=ListaČasova[VREME ZAVRŠETKA]),ListaČasova[JEDINSTVENI]),ListaČasova[JEDINSTVENI],0),2),0)","v":0},{"$f":"IFERROR(INDEX(ListaČasova[],MATCH(SUMPRODUCT((ListaČasova[DAN]=RasporedČasova[[#Headers],[ČETVRTAK]])*(ROUNDDOWN($B34,10)>=ROUNDDOWN(ListaČasova[VREME POČETKA],10))*($B34<=ListaČasova[VREME ZAVRŠETKA]),ListaČasova[JEDINSTVENI]),ListaČasova[JEDINSTVENI],0),2),0)","v":0},{"$f":"IFERROR(INDEX(ListaČasova[],MATCH(SUMPRODUCT((ListaČasova[DAN]=RasporedČasova[[#Headers],[PETAK]])*(ROUNDDOWN($B34,10)>=ROUNDDOWN(ListaČasova[VREME POČETKA],10))*($B34<=ListaČasova[VREME ZAVRŠETKA]),ListaČasova[JEDINSTVENI]),ListaČasova[JEDINSTVENI],0),2),0)","v":0},{"$f":"IFERROR(INDEX(ListaČasova[],MATCH(SUMPRODUCT((ListaČasova[DAN]=RasporedČasova[[#Headers],[SUBOTA]])*(ROUNDDOWN($B34,10)>=ROUNDDOWN(ListaČasova[VREME POČETKA],10))*($B34<=ListaČasova[VREME ZAVRŠETKA]),ListaČasova[JEDINSTVENI]),ListaČasova[JEDINSTVENI],0),2),0)","v":0}]
[null,"15:45:00",{"$f":"IFERROR(INDEX(ListaČasova[],MATCH(SUMPRODUCT((ListaČasova[DAN]=RasporedČasova[[#Headers],[NEDELJA]])*(ROUNDDOWN($B35,10)>=ROUNDDOWN(ListaČasova[VREME POČETKA],10))*($B35<=ListaČasova[VREME ZAVRŠETKA]),ListaČasova[JEDINSTVENI]),ListaČasova[JEDINSTVENI],0),2),0)","v":0},{"$f":"IFERROR(INDEX(ListaČasova[],MATCH(SUMPRODUCT((ListaČasova[DAN]=RasporedČasova[[#Headers],[PONEDELJAK]])*(ROUNDDOWN($B35,10)>=ROUNDDOWN(ListaČasova[VREME POČETKA],10))*($B35<=ListaČasova[VREME ZAVRŠETKA]),ListaČasova[JEDINSTVENI]),ListaČasova[JEDINSTVENI],0),2),0)","v":0},{"$f":"IFERROR(INDEX(ListaČasova[],MATCH(SUMPRODUCT((ListaČasova[DAN]=RasporedČasova[[#Headers],[UTORAK]])*(ROUNDDOWN($B35,10)>=ROUNDDOWN(ListaČasova[VREME POČETKA],10))*($B35<=ListaČasova[VREME ZAVRŠETKA]),ListaČasova[JEDINSTVENI]),ListaČasova[JEDINSTVENI],0),2),0)","v":0},{"$f":"IFERROR(INDEX(ListaČasova[],MATCH(SUMPRODUCT((ListaČasova[DAN]=RasporedČasova[[#Headers],[SREDA]])*(ROUNDDOWN($B35,10)>=ROUNDDOWN(ListaČasova[VREME POČETKA],10))*($B35<=ListaČasova[VREME ZAVRŠETKA]),ListaČasova[JEDINSTVENI]),ListaČasova[JEDINSTVENI],0),2),0)","v":0},{"$f":"IFERROR(INDEX(ListaČasova[],MATCH(SUMPRODUCT((ListaČasova[DAN]=RasporedČasova[[#Headers],[ČETVRTAK]])*(ROUNDDOWN($B35,10)>=ROUNDDOWN(ListaČasova[VREME POČETKA],10))*($B35<=ListaČasova[VREME ZAVRŠETKA]),ListaČasova[JEDINSTVENI]),ListaČasova[JEDINSTVENI],0),2),0)","v":0},{"$f":"IFERROR(INDEX(ListaČasova[],MATCH(SUMPRODUCT((ListaČasova[DAN]=RasporedČasova[[#Headers],[PETAK]])*(ROUNDDOWN($B35,10)>=ROUNDDOWN(ListaČasova[VREME POČETKA],10))*($B35<=ListaČasova[VREME ZAVRŠETKA]),ListaČasova[JEDINSTVENI]),ListaČasova[JEDINSTVENI],0),2),0)","v":0},{"$f":"IFERROR(INDEX(ListaČasova[],MATCH(SUMPRODUCT((ListaČasova[DAN]=RasporedČasova[[#Headers],[SUBOTA]])*(ROUNDDOWN($B35,10)>=ROUNDDOWN(ListaČasova[VREME POČETKA],10))*($B35<=ListaČasova[VREME ZAVRŠETKA]),ListaČasova[JEDINSTVENI]),ListaČasova[JEDINSTVENI],0),2),0)","v":0}]
[null,"16:00:00",{"$f":"IFERROR(INDEX(ListaČasova[],MATCH(SUMPRODUCT((ListaČasova[DAN]=RasporedČasova[[#Headers],[NEDELJA]])*(ROUNDDOWN($B36,10)>=ROUNDDOWN(ListaČasova[VREME POČETKA],10))*($B36<=ListaČasova[VREME ZAVRŠETKA]),ListaČasova[JEDINSTVENI]),ListaČasova[JEDINSTVENI],0),2),0)","v":0},{"$f":"IFERROR(INDEX(ListaČasova[],MATCH(SUMPRODUCT((ListaČasova[DAN]=RasporedČasova[[#Headers],[PONEDELJAK]])*(ROUNDDOWN($B36,10)>=ROUNDDOWN(ListaČasova[VREME POČETKA],10))*($B36<=ListaČasova[VREME ZAVRŠETKA]),ListaČasova[JEDINSTVENI]),ListaČasova[JEDINSTVENI],0),2),0)","v":"RT-111"},{"$f":"IFERROR(INDEX(ListaČasova[],MATCH(SUMPRODUCT((ListaČasova[DAN]=RasporedČasova[[#Headers],[UTORAK]])*(ROUNDDOWN($B36,10)>=ROUNDDOWN(ListaČasova[VREME POČETKA],10))*($B36<=ListaČasova[VREME ZAVRŠETKA]),ListaČasova[JEDINSTVENI]),ListaČasova[JEDINSTVENI],0),2),0)","v":0},{"$f":"IFERROR(INDEX(ListaČasova[],MATCH(SUMPRODUCT((ListaČasova[DAN]=RasporedČasova[[#Headers],[SREDA]])*(ROUNDDOWN($B36,10)>=ROUNDDOWN(ListaČasova[VREME POČETKA],10))*($B36<=ListaČasova[VREME ZAVRŠETKA]),ListaČasova[JEDINSTVENI]),ListaČasova[JEDINSTVENI],0),2),0)","v":0},{"$f":"IFERROR(INDEX(ListaČasova[],MATCH(SUMPRODUCT((ListaČasova[DAN]=RasporedČasova[[#Headers],[ČETVRTAK]])*(ROUNDDOWN($B36,10)>=ROUNDDOWN(ListaČasova[VREME POČETKA],10))*($B36<=ListaČasova[VREME ZAVRŠETKA]),ListaČasova[JEDINSTVENI]),ListaČasova[JEDINSTVENI],0),2),0)","v":0},{"$f":"IFERROR(INDEX(ListaČasova[],MATCH(SUMPRODUCT((ListaČasova[DAN]=RasporedČasova[[#Headers],[PETAK]])*(ROUNDDOWN($B36,10)>=ROUNDDOWN(ListaČasova[VREME POČETKA],10))*($B36<=ListaČasova[VREME ZAVRŠETKA]),ListaČasova[JEDINSTVENI]),ListaČasova[JEDINSTVENI],0),2),0)","v":0},{"$f":"IFERROR(INDEX(ListaČasova[],MATCH(SUMPRODUCT((ListaČasova[DAN]=RasporedČasova[[#Headers],[SUBOTA]])*(ROUNDDOWN($B36,10)>=ROUNDDOWN(ListaČasova[VREME POČETKA],10))*($B36<=ListaČasova[VREME ZAVRŠETKA]),ListaČasova[JEDINSTVENI]),ListaČasova[JEDINSTVENI],0),2),0)","v":0}]
[null,{"$f":"B36+Inkrement","v":"16:15:00"},{"$f":"IFERROR(INDEX(ListaČasova[],MATCH(SUMPRODUCT((ListaČasova[DAN]=RasporedČasova[[#Headers],[NEDELJA]])*(ROUNDDOWN($B37,10)>=ROUNDDOWN(ListaČasova[VREME POČETKA],10))*($B37<=ListaČasova[VREME ZAVRŠETKA]),ListaČasova[JEDINSTVENI]),ListaČasova[JEDINSTVENI],0),2),0)","v":0},{"$f":"IFERROR(INDEX(ListaČasova[],MATCH(SUMPRODUCT((ListaČasova[DAN]=RasporedČasova[[#Headers],[PONEDELJAK]])*(ROUNDDOWN($B37,10)>=ROUNDDOWN(ListaČasova[VREME POČETKA],10))*($B37<=ListaČasova[VREME ZAVRŠETKA]),ListaČasova[JEDINSTVENI]),ListaČasova[JEDINSTVENI],0),2),0)","v":"RT-111"},{"$f":"IFERROR(INDEX(ListaČasova[],MATCH(SUMPRODUCT((ListaČasova[DAN]=RasporedČasova[[#Headers],[UTORAK]])*(ROUNDDOWN($B37,10)>=ROUNDDOWN(ListaČasova[VREME POČETKA],10))*($B37<=ListaČasova[VREME ZAVRŠETKA]),ListaČasova[JEDINSTVENI]),ListaČasova[JEDINSTVENI],0),2),0)","v":0},{"$f":"IFERROR(INDEX(ListaČasova[],MATCH(SUMPRODUCT((ListaČasova[DAN]=RasporedČasova[[#Headers],[SREDA]])*(ROUNDDOWN($B37,10)>=ROUNDDOWN(ListaČasova[VREME POČETKA],10))*($B37<=ListaČasova[VREME ZAVRŠETKA]),ListaČasova[JEDINSTVENI]),ListaČasova[JEDINSTVENI],0),2),0)","v":0},{"$f":"IFERROR(INDEX(ListaČasova[],MATCH(SUMPRODUCT((ListaČasova[DAN]=RasporedČasova[[#Headers],[ČETVRTAK]])*(ROUNDDOWN($B37,10)>=ROUNDDOWN(ListaČasova[VREME POČETKA],10))*($B37<=ListaČasova[VREME ZAVRŠETKA]),ListaČasova[JEDINSTVENI]),ListaČasova[JEDINSTVENI],0),2),0)","v":0},{"$f":"IFERROR(INDEX(ListaČasova[],MATCH(SUMPRODUCT((ListaČasova[DAN]=RasporedČasova[[#Headers],[PETAK]])*(ROUNDDOWN($B37,10)>=ROUNDDOWN(ListaČasova[VREME POČETKA],10))*($B37<=ListaČasova[VREME ZAVRŠETKA]),ListaČasova[JEDINSTVENI]),ListaČasova[JEDINSTVENI],0),2),0)","v":0},{"$f":"IFERROR(INDEX(ListaČasova[],MATCH(SUMPRODUCT((ListaČasova[DAN]=RasporedČasova[[#Headers],[SUBOTA]])*(ROUNDDOWN($B37,10)>=ROUNDDOWN(ListaČasova[VREME POČETKA],10))*($B37<=ListaČasova[VREME ZAVRŠETKA]),ListaČasova[JEDINSTVENI]),ListaČasova[JEDINSTVENI],0),2),0)","v":0}]
[null,"16:30:00",{"$f":"IFERROR(INDEX(ListaČasova[],MATCH(SUMPRODUCT((ListaČasova[DAN]=RasporedČasova[[#Headers],[NEDELJA]])*(ROUNDDOWN($B38,10)>=ROUNDDOWN(ListaČasova[VREME POČETKA],10))*($B38<=ListaČasova[VREME ZAVRŠETKA]),ListaČasova[JEDINSTVENI]),ListaČasova[JEDINSTVENI],0),2),0)","v":0},{"$f":"IFERROR(INDEX(ListaČasova[],MATCH(SUMPRODUCT((ListaČasova[DAN]=RasporedČasova[[#Headers],[PONEDELJAK]])*(ROUNDDOWN($B38,10)>=ROUNDDOWN(ListaČasova[VREME POČETKA],10))*($B38<=ListaČasova[VREME ZAVRŠETKA]),ListaČasova[JEDINSTVENI]),ListaČasova[JEDINSTVENI],0),2),0)","v":"RT-111"},{"$f":"IFERROR(INDEX(ListaČasova[],MATCH(SUMPRODUCT((ListaČasova[DAN]=RasporedČasova[[#Headers],[UTORAK]])*(ROUNDDOWN($B38,10)>=ROUNDDOWN(ListaČasova[VREME POČETKA],10))*($B38<=ListaČasova[VREME ZAVRŠETKA]),ListaČasova[JEDINSTVENI]),ListaČasova[JEDINSTVENI],0),2),0)","v":0},{"$f":"IFERROR(INDEX(ListaČasova[],MATCH(SUMPRODUCT((ListaČasova[DAN]=RasporedČasova[[#Headers],[SREDA]])*(ROUNDDOWN($B38,10)>=ROUNDDOWN(ListaČasova[VREME POČETKA],10))*($B38<=ListaČasova[VREME ZAVRŠETKA]),ListaČasova[JEDINSTVENI]),ListaČasova[JEDINSTVENI],0),2),0)","v":0},{"$f":"IFERROR(INDEX(ListaČasova[],MATCH(SUMPRODUCT((ListaČasova[DAN]=RasporedČasova[[#Headers],[ČETVRTAK]])*(ROUNDDOWN($B38,10)>=ROUNDDOWN(ListaČasova[VREME POČETKA],10))*($B38<=ListaČasova[VREME ZAVRŠETKA]),ListaČasova[JEDINSTVENI]),ListaČasova[JEDINSTVENI],0),2),0)","v":0},{"$f":"IFERROR(INDEX(ListaČasova[],MATCH(SUMPRODUCT((ListaČasova[DAN]=RasporedČasova[[#Headers],[PETAK]])*(ROUNDDOWN($B38,10)>=ROUNDDOWN(ListaČasova[VREME POČETKA],10))*($B38<=ListaČasova[VREME ZAVRŠETKA]),ListaČasova[JEDINSTVENI]),ListaČasova[JEDINSTVENI],0),2),0)","v":0},{"$f":"IFERROR(INDEX(ListaČasova[],MATCH(SUMPRODUCT((ListaČasova[DAN]=RasporedČasova[[#Headers],[SUBOTA]])*(ROUNDDOWN($B38,10)>=ROUNDDOWN(ListaČasova[VREME POČETKA],10))*($B38<=ListaČasova[VREME ZAVRŠETKA]),ListaČasova[JEDINSTVENI]),ListaČasova[JEDINSTVENI],0),2),0)","v":0}]
[null,"16:45:00",{"$f":"IFERROR(INDEX(ListaČasova[],MATCH(SUMPRODUCT((ListaČasova[DAN]=RasporedČasova[[#Headers],[NEDELJA]])*(ROUNDDOWN($B39,10)>=ROUNDDOWN(ListaČasova[VREME POČETKA],10))*($B39<=ListaČasova[VREME ZAVRŠETKA]),ListaČasova[JEDINSTVENI]),ListaČasova[JEDINSTVENI],0),2),0)","v":0},{"$f":"IFERROR(INDEX(ListaČasova[],MATCH(SUMPRODUCT((ListaČasova[DAN]=RasporedČasova[[#Headers],[PONEDELJAK]])*(ROUNDDOWN($B39,10)>=ROUNDDOWN(ListaČasova[VREME POČETKA],10))*($B39<=ListaČasova[VREME ZAVRŠETKA]),ListaČasova[JEDINSTVENI]),ListaČasova[JEDINSTVENI],0),2),0)","v":"RT-111"},{"$f":"IFERROR(INDEX(ListaČasova[],MATCH(SUMPRODUCT((ListaČasova[DAN]=RasporedČasova[[#Headers],[UTORAK]])*(ROUNDDOWN($B39,10)>=ROUNDDOWN(ListaČasova[VREME POČETKA],10))*($B39<=ListaČasova[VREME ZAVRŠETKA]),ListaČasova[JEDINSTVENI]),ListaČasova[JEDINSTVENI],0),2),0)","v":0},{"$f":"IFERROR(INDEX(ListaČasova[],MATCH(SUMPRODUCT((ListaČasova[DAN]=RasporedČasova[[#Headers],[SREDA]])*(ROUNDDOWN($B39,10)>=ROUNDDOWN(ListaČasova[VREME POČETKA],10))*($B39<=ListaČasova[VREME ZAVRŠETKA]),ListaČasova[JEDINSTVENI]),ListaČasova[JEDINSTVENI],0),2),0)","v":0},{"$f":"IFERROR(INDEX(ListaČasova[],MATCH(SUMPRODUCT((ListaČasova[DAN]=RasporedČasova[[#Headers],[ČETVRTAK]])*(ROUNDDOWN($B39,10)>=ROUNDDOWN(ListaČasova[VREME POČETKA],10))*($B39<=ListaČasova[VREME ZAVRŠETKA]),ListaČasova[JEDINSTVENI]),ListaČasova[JEDINSTVENI],0),2),0)","v":0},{"$f":"IFERROR(INDEX(ListaČasova[],MATCH(SUMPRODUCT((ListaČasova[DAN]=RasporedČasova[[#Headers],[PETAK]])*(ROUNDDOWN($B39,10)>=ROUNDDOWN(ListaČasova[VREME POČETKA],10))*($B39<=ListaČasova[VREME ZAVRŠETKA]),ListaČasova[JEDINSTVENI]),ListaČasova[JEDINSTVENI],0),2),0)","v":0},{"$f":"IFERROR(INDEX(ListaČasova[],MATCH(SUMPRODUCT((ListaČasova[DAN]=RasporedČasova[[#Headers],[SUBOTA]])*(ROUNDDOWN($B39,10)>=ROUNDDOWN(ListaČasova[VREME POČETKA],10))*($B39<=ListaČasova[VREME ZAVRŠETKA]),ListaČasova[JEDINSTVENI]),ListaČasova[JEDINSTVENI],0),2),0)","v":0}]
[null,"17:00:00",{"$f":"IFERROR(INDEX(ListaČasova[],MATCH(SUMPRODUCT((ListaČasova[DAN]=RasporedČasova[[#Headers],[NEDELJA]])*(ROUNDDOWN($B40,10)>=ROUNDDOWN(ListaČasova[VREME POČETKA],10))*($B40<=ListaČasova[VREME ZAVRŠETKA]),ListaČasova[JEDINSTVENI]),ListaČasova[JEDINSTVENI],0),2),0)","v":0},{"$f":"IFERROR(INDEX(ListaČasova[],MATCH(SUMPRODUCT((ListaČasova[DAN]=RasporedČasova[[#Headers],[PONEDELJAK]])*(ROUNDDOWN($B40,10)>=ROUNDDOWN(ListaČasova[VREME POČETKA],10))*($B40<=ListaČasova[VREME ZAVRŠETKA]),ListaČasova[JEDINSTVENI]),ListaČasova[JEDINSTVENI],0),2),0)","v":"RT-111"},{"$f":"IFERROR(INDEX(ListaČasova[],MATCH(SUMPRODUCT((ListaČasova[DAN]=RasporedČasova[[#Headers],[UTORAK]])*(ROUNDDOWN($B40,10)>=ROUNDDOWN(ListaČasova[VREME POČETKA],10))*($B40<=ListaČasova[VREME ZAVRŠETKA]),ListaČasova[JEDINSTVENI]),ListaČasova[JEDINSTVENI],0),2),0)","v":0},{"$f":"IFERROR(INDEX(ListaČasova[],MATCH(SUMPRODUCT((ListaČasova[DAN]=RasporedČasova[[#Headers],[SREDA]])*(ROUNDDOWN($B40,10)>=ROUNDDOWN(ListaČasova[VREME POČETKA],10))*($B40<=ListaČasova[VREME ZAVRŠETKA]),ListaČasova[JEDINSTVENI]),ListaČasova[JEDINSTVENI],0),2),0)","v":0},{"$f":"IFERROR(INDEX(ListaČasova[],MATCH(SUMPRODUCT((ListaČasova[DAN]=RasporedČasova[[#Headers],[ČETVRTAK]])*(ROUNDDOWN($B40,10)>=ROUNDDOWN(ListaČasova[VREME POČETKA],10))*($B40<=ListaČasova[VREME ZAVRŠETKA]),ListaČasova[JEDINSTVENI]),ListaČasova[JEDINSTVENI],0),2),0)","v":0},{"$f":"IFERROR(INDEX(ListaČasova[],MATCH(SUMPRODUCT((ListaČasova[DAN]=RasporedČasova[[#Headers],[PETAK]])*(ROUNDDOWN($B40,10)>=ROUNDDOWN(ListaČasova[VREME POČETKA],10))*($B40<=ListaČasova[VREME ZAVRŠETKA]),ListaČasova[JEDINSTVENI]),ListaČasova[JEDINSTVENI],0),2),0)","v":0},{"$f":"IFERROR(INDEX(ListaČasova[],MATCH(SUMPRODUCT((ListaČasova[DAN]=RasporedČasova[[#Headers],[SUBOTA]])*(ROUNDDOWN($B40,10)>=ROUNDDOWN(ListaČasova[VREME POČETKA],10))*($B40<=ListaČasova[VREME ZAVRŠETKA]),ListaČasova[JEDINSTVENI]),ListaČasova[JEDINSTVENI],0),2),0)","v":0}]
[null,"17:15:00",{"$f":"IFERROR(INDEX(ListaČasova[],MATCH(SUMPRODUCT((ListaČasova[DAN]=RasporedČasova[[#Headers],[NEDELJA]])*(ROUNDDOWN($B41,10)>=ROUNDDOWN(ListaČasova[VREME POČETKA],10))*($B41<=ListaČasova[VREME ZAVRŠETKA]),ListaČasova[JEDINSTVENI]),ListaČasova[JEDINSTVENI],0),2),0)","v":0},{"$f":"IFERROR(INDEX(ListaČasova[],MATCH(SUMPRODUCT((ListaČasova[DAN]=RasporedČasova[[#Headers],[PONEDELJAK]])*(ROUNDDOWN($B41,10)>=ROUNDDOWN(ListaČasova[VREME POČETKA],10))*($B41<=ListaČasova[VREME ZAVRŠETKA]),ListaČasova[JEDINSTVENI]),ListaČasova[JEDINSTVENI],0),2),0)","v":0},{"$f":"IFERROR(INDEX(ListaČasova[],MATCH(SUMPRODUCT((ListaČasova[DAN]=RasporedČasova[[#Headers],[UTORAK]])*(ROUNDDOWN($B41,10)>=ROUNDDOWN(ListaČasova[VREME POČETKA],10))*($B41<=ListaČasova[VREME ZAVRŠETKA]),ListaČasova[JEDINSTVENI]),ListaČasova[JEDINSTVENI],0),2),0)","v":0},{"$f":"IFERROR(INDEX(ListaČasova[],MATCH(SUMPRODUCT((ListaČasova[DAN]=RasporedČasova[[#Headers],[SREDA]])*(ROUNDDOWN($B41,10)>=ROUNDDOWN(ListaČasova[VREME POČETKA],10))*($B41<=ListaČasova[VREME ZAVRŠETKA]),ListaČasova[JEDINSTVENI]),ListaČasova[JEDINSTVENI],0),2),0)","v":0},{"$f":"IFERROR(INDEX(ListaČasova[],MATCH(SUMPRODUCT((ListaČasova[DAN]=RasporedČasova[[#Headers],[ČETVRTAK]])*(ROUNDDOWN($B41,10)>=ROUNDDOWN(ListaČasova[VREME POČETKA],10))*($B41<=ListaČasova[VREME ZAVRŠETKA]),ListaČasova[JEDINSTVENI]),ListaČasova[JEDINSTVENI],0),2),0)","v":0},{"$f":"IFERROR(INDEX(ListaČasova[],MATCH(SUMPRODUCT((ListaČasova[DAN]=RasporedČasova[[#Headers],[PETAK]])*(ROUNDDOWN($B41,10)>=ROUNDDOWN(ListaČasova[VREME POČETKA],10))*($B41<=ListaČasova[VREME ZAVRŠETKA]),ListaČasova[JEDINSTVENI]),ListaČasova[JEDINSTVENI],0),2),0)","v":0},{"$f":"IFERROR(INDEX(ListaČasova[],MATCH(SUMPRODUCT((ListaČasova[DAN]=RasporedČasova[[#Headers],[SUBOTA]])*(ROUNDDOWN($B41,10)>=ROUNDDOWN(ListaČasova[VREME POČETKA],10))*($B41<=ListaČasova[VREME ZAVRŠETKA]),ListaČasova[JEDINSTVENI]),ListaČasova[JEDINSTVENI],0),2),0)","v":0}]
[null,"17:30:00",{"$f":"IFERROR(INDEX(ListaČasova[],MATCH(SUMPRODUCT((ListaČasova[DAN]=RasporedČasova[[#Headers],[NEDELJA]])*(ROUNDDOWN($B42,10)>=ROUNDDOWN(ListaČasova[VREME POČETKA],10))*($B42<=ListaČasova[VREME ZAVRŠETKA]),ListaČasova[JEDINSTVENI]),ListaČasova[JEDINSTVENI],0),2),0)","v":0},{"$f":"IFERROR(INDEX(ListaČasova[],MATCH(SUMPRODUCT((ListaČasova[DAN]=RasporedČasova[[#Headers],[PONEDELJAK]])*(ROUNDDOWN($B42,10)>=ROUNDDOWN(ListaČasova[VREME POČETKA],10))*($B42<=ListaČasova[VREME ZAVRŠETKA]),ListaČasova[JEDINSTVENI]),ListaČasova[JEDINSTVENI],0),2),0)","v":0},{"$f":"IFERROR(INDEX(ListaČasova[],MATCH(SUMPRODUCT((ListaČasova[DAN]=RasporedČasova[[#Headers],[UTORAK]])*(ROUNDDOWN($B42,10)>=ROUNDDOWN(ListaČasova[VREME POČETKA],10))*($B42<=ListaČasova[VREME ZAVRŠETKA]),ListaČasova[JEDINSTVENI]),ListaČasova[JEDINSTVENI],0),2),0)","v":0},{"$f":"IFERROR(INDEX(ListaČasova[],MATCH(SUMPRODUCT((ListaČasova[DAN]=RasporedČasova[[#Headers],[SREDA]])*(ROUNDDOWN($B42,10)>=ROUNDDOWN(ListaČasova[VREME POČETKA],10))*($B42<=ListaČasova[VREME ZAVRŠETKA]),ListaČasova[JEDINSTVENI]),ListaČasova[JEDINSTVENI],0),2),0)","v":0},{"$f":"IFERROR(INDEX(ListaČasova[],MATCH(SUMPRODUCT((ListaČasova[DAN]=RasporedČasova[[#Headers],[ČETVRTAK]])*(ROUNDDOWN($B42,10)>=ROUNDDOWN(ListaČasova[VREME POČETKA],10))*($B42<=ListaČasova[VREME ZAVRŠETKA]),ListaČasova[JEDINSTVENI]),ListaČasova[JEDINSTVENI],0),2),0)","v":0},{"$f":"IFERROR(INDEX(ListaČasova[],MATCH(SUMPRODUCT((ListaČasova[DAN]=RasporedČasova[[#Headers],[PETAK]])*(ROUNDDOWN($B42,10)>=ROUNDDOWN(ListaČasova[VREME POČETKA],10))*($B42<=ListaČasova[VREME ZAVRŠETKA]),ListaČasova[JEDINSTVENI]),ListaČasova[JEDINSTVENI],0),2),0)","v":0},{"$f":"IFERROR(INDEX(ListaČasova[],MATCH(SUMPRODUCT((ListaČasova[DAN]=RasporedČasova[[#Headers],[SUBOTA]])*(ROUNDDOWN($B42,10)>=ROUNDDOWN(ListaČasova[VREME POČETKA],10))*($B42<=ListaČasova[VREME ZAVRŠETKA]),ListaČasova[JEDINSTVENI]),ListaČasova[JEDINSTVENI],0),2),0)","v":0}]
[null,"17:45:00",{"$f":"IFERROR(INDEX(ListaČasova[],MATCH(SUMPRODUCT((ListaČasova[DAN]=RasporedČasova[[#Headers],[NEDELJA]])*(ROUNDDOWN($B43,10)>=ROUNDDOWN(ListaČasova[VREME POČETKA],10))*($B43<=ListaČasova[VREME ZAVRŠETKA]),ListaČasova[JEDINSTVENI]),ListaČasova[JEDINSTVENI],0),2),0)","v":0},{"$f":"IFERROR(INDEX(ListaČasova[],MATCH(SUMPRODUCT((ListaČasova[DAN]=RasporedČasova[[#Headers],[PONEDELJAK]])*(ROUNDDOWN($B43,10)>=ROUNDDOWN(ListaČasova[VREME POČETKA],10))*($B43<=ListaČasova[VREME ZAVRŠETKA]),ListaČasova[JEDINSTVENI]),ListaČasova[JEDINSTVENI],0),2),0)","v":0},{"$f":"IFERROR(INDEX(ListaČasova[],MATCH(SUMPRODUCT((ListaČasova[DAN]=RasporedČasova[[#Headers],[UTORAK]])*(ROUNDDOWN($B43,10)>=ROUNDDOWN(ListaČasova[VREME POČETKA],10))*($B43<=ListaČasova[VREME ZAVRŠETKA]),ListaČasova[JEDINSTVENI]),ListaČasova[JEDINSTVENI],0),2),0)","v":0},{"$f":"IFERROR(INDEX(ListaČasova[],MATCH(SUMPRODUCT((ListaČasova[DAN]=RasporedČasova[[#Headers],[SREDA]])*(ROUNDDOWN($B43,10)>=ROUNDDOWN(ListaČasova[VREME POČETKA],10))*($B43<=ListaČasova[VREME ZAVRŠETKA]),ListaČasova[JEDINSTVENI]),ListaČasova[JEDINSTVENI],0),2),0)","v":0},{"$f":"IFERROR(INDEX(ListaČasova[],MATCH(SUMPRODUCT((ListaČasova[DAN]=RasporedČasova[[#Headers],[ČETVRTAK]])*(ROUNDDOWN($B43,10)>=ROUNDDOWN(ListaČasova[VREME POČETKA],10))*($B43<=ListaČasova[VREME ZAVRŠETKA]),ListaČasova[JEDINSTVENI]),ListaČasova[JEDINSTVENI],0),2),0)","v":0},{"$f":"IFERROR(INDEX(ListaČasova[],MATCH(SUMPRODUCT((ListaČasova[DAN]=RasporedČasova[[#Headers],[PETAK]])*(ROUNDDOWN($B43,10)>=ROUNDDOWN(ListaČasova[VREME POČETKA],10))*($B43<=ListaČasova[VREME ZAVRŠETKA]),ListaČasova[JEDINSTVENI]),ListaČasova[JEDINSTVENI],0),2),0)","v":0},{"$f":"IFERROR(INDEX(ListaČasova[],MATCH(SUMPRODUCT((ListaČasova[DAN]=RasporedČasova[[#Headers],[SUBOTA]])*(ROUNDDOWN($B43,10)>=ROUNDDOWN(ListaČasova[VREME POČETKA],10))*($B43<=ListaČasova[VREME ZAVRŠETKA]),ListaČasova[JEDINSTVENI]),ListaČasova[JEDINSTVENI],0),2),0)","v":0}]
[null,"18:00:00",{"$f":"IFERROR(INDEX(ListaČasova[],MATCH(SUMPRODUCT((ListaČasova[DAN]=RasporedČasova[[#Headers],[NEDELJA]])*(ROUNDDOWN($B44,10)>=ROUNDDOWN(ListaČasova[VREME POČETKA],10))*($B44<=ListaČasova[VREME ZAVRŠETKA]),ListaČasova[JEDINSTVENI]),ListaČasova[JEDINSTVENI],0),2),0)","v":0},{"$f":"IFERROR(INDEX(ListaČasova[],MATCH(SUMPRODUCT((ListaČasova[DAN]=RasporedČasova[[#Headers],[PONEDELJAK]])*(ROUNDDOWN($B44,10)>=ROUNDDOWN(ListaČasova[VREME POČETKA],10))*($B44<=ListaČasova[VREME ZAVRŠETKA]),ListaČasova[JEDINSTVENI]),ListaČasova[JEDINSTVENI],0),2),0)","v":0},{"$f":"IFERROR(INDEX(ListaČasova[],MATCH(SUMPRODUCT((ListaČasova[DAN]=RasporedČasova[[#Headers],[UTORAK]])*(ROUNDDOWN($B44,10)>=ROUNDDOWN(ListaČasova[VREME POČETKA],10))*($B44<=ListaČasova[VREME ZAVRŠETKA]),ListaČasova[JEDINSTVENI]),ListaČasova[JEDINSTVENI],0),2),0)","v":0},{"$f":"IFERROR(INDEX(ListaČasova[],MATCH(SUMPRODUCT((ListaČasova[DAN]=RasporedČasova[[#Headers],[SREDA]])*(ROUNDDOWN($B44,10)>=ROUNDDOWN(ListaČasova[VREME POČETKA],10))*($B44<=ListaČasova[VREME ZAVRŠETKA]),ListaČasova[JEDINSTVENI]),ListaČasova[JEDINSTVENI],0),2),0)","v":0},{"$f":"IFERROR(INDEX(ListaČasova[],MATCH(SUMPRODUCT((ListaČasova[DAN]=RasporedČasova[[#Headers],[ČETVRTAK]])*(ROUNDDOWN($B44,10)>=ROUNDDOWN(ListaČasova[VREME POČETKA],10))*($B44<=ListaČasova[VREME ZAVRŠETKA]),ListaČasova[JEDINSTVENI]),ListaČasova[JEDINSTVENI],0),2),0)","v":0},{"$f":"IFERROR(INDEX(ListaČasova[],MATCH(SUMPRODUCT((ListaČasova[DAN]=RasporedČasova[[#Headers],[PETAK]])*(ROUNDDOWN($B44,10)>=ROUNDDOWN(ListaČasova[VREME POČETKA],10))*($B44<=ListaČasova[VREME ZAVRŠETKA]),ListaČasova[JEDINSTVENI]),ListaČasova[JEDINSTVENI],0),2),0)","v":0},{"$f":"IFERROR(INDEX(ListaČasova[],MATCH(SUMPRODUCT((ListaČasova[DAN]=RasporedČasova[[#Headers],[SUBOTA]])*(ROUNDDOWN($B44,10)>=ROUNDDOWN(ListaČasova[VREME POČETKA],10))*($B44<=ListaČasova[VREME ZAVRŠETKA]),ListaČasova[JEDINSTVENI]),ListaČasova[JEDINSTVENI],0),2),0)","v":0}]
[null,"18:15:00",{"$f":"IFERROR(INDEX(ListaČasova[],MATCH(SUMPRODUCT((ListaČasova[DAN]=RasporedČasova[[#Headers],[NEDELJA]])*(ROUNDDOWN($B45,10)>=ROUNDDOWN(ListaČasova[VREME POČETKA],10))*($B45<=ListaČasova[VREME ZAVRŠETKA]),ListaČasova[JEDINSTVENI]),ListaČasova[JEDINSTVENI],0),2),0)","v":0},{"$f":"IFERROR(INDEX(ListaČasova[],MATCH(SUMPRODUCT((ListaČasova[DAN]=RasporedČasova[[#Headers],[PONEDELJAK]])*(ROUNDDOWN($B45,10)>=ROUNDDOWN(ListaČasova[VREME POČETKA],10))*($B45<=ListaČasova[VREME ZAVRŠETKA]),ListaČasova[JEDINSTVENI]),ListaČasova[JEDINSTVENI],0),2),0)","v":0},{"$f":"IFERROR(INDEX(ListaČasova[],MATCH(SUMPRODUCT((ListaČasova[DAN]=RasporedČasova[[#Headers],[UTORAK]])*(ROUNDDOWN($B45,10)>=ROUNDDOWN(ListaČasova[VREME POČETKA],10))*($B45<=ListaČasova[VREME ZAVRŠETKA]),ListaČasova[JEDINSTVENI]),ListaČasova[JEDINSTVENI],0),2),0)","v":0},{"$f":"IFERROR(INDEX(ListaČasova[],MATCH(SUMPRODUCT((ListaČasova[DAN]=RasporedČasova[[#Headers],[SREDA]])*(ROUNDDOWN($B45,10)>=ROUNDDOWN(ListaČasova[VREME POČETKA],10))*($B45<=ListaČasova[VREME ZAVRŠETKA]),ListaČasova[JEDINSTVENI]),ListaČasova[JEDINSTVENI],0),2),0)","v":0},{"$f":"IFERROR(INDEX(ListaČasova[],MATCH(SUMPRODUCT((ListaČasova[DAN]=RasporedČasova[[#Headers],[ČETVRTAK]])*(ROUNDDOWN($B45,10)>=ROUNDDOWN(ListaČasova[VREME POČETKA],10))*($B45<=ListaČasova[VREME ZAVRŠETKA]),ListaČasova[JEDINSTVENI]),ListaČasova[JEDINSTVENI],0),2),0)","v":0},{"$f":"IFERROR(INDEX(ListaČasova[],MATCH(SUMPRODUCT((ListaČasova[DAN]=RasporedČasova[[#Headers],[PETAK]])*(ROUNDDOWN($B45,10)>=ROUNDDOWN(ListaČasova[VREME POČETKA],10))*($B45<=ListaČasova[VREME ZAVRŠETKA]),ListaČasova[JEDINSTVENI]),ListaČasova[JEDINSTVENI],0),2),0)","v":0},{"$f":"IFERROR(INDEX(ListaČasova[],MATCH(SUMPRODUCT((ListaČasova[DAN]=RasporedČasova[[#Headers],[SUBOTA]])*(ROUNDDOWN($B45,10)>=ROUNDDOWN(ListaČasova[VREME POČETKA],10))*($B45<=ListaČasova[VREME ZAVRŠETKA]),ListaČasova[JEDINSTVENI]),ListaČasova[JEDINSTVENI],0),2),0)","v":0}]
[null,"18:30:00",{"$f":"IFERROR(INDEX(ListaČasova[],MATCH(SUMPRODUCT((ListaČasova[DAN]=RasporedČasova[[#Headers],[NEDELJA]])*(ROUNDDOWN($B46,10)>=ROUNDDOWN(ListaČasova[VREME POČETKA],10))*($B46<=ListaČasova[VREME ZAVRŠETKA]),ListaČasova[JEDINSTVENI]),ListaČasova[JEDINSTVENI],0),2),0)","v":0},{"$f":"IFERROR(INDEX(ListaČasova[],MATCH(SUMPRODUCT((ListaČasova[DAN]=RasporedČasova[[#Headers],[PONEDELJAK]])*(ROUNDDOWN($B46,10)>=ROUNDDOWN(ListaČasova[VREME POČETKA],10))*($B46<=ListaČasova[VREME ZAVRŠETKA]),ListaČasova[JEDINSTVENI]),ListaČasova[JEDINSTVENI],0),2),0)","v":0},{"$f":"IFERROR(INDEX(ListaČasova[],MATCH(SUMPRODUCT((ListaČasova[DAN]=RasporedČasova[[#Headers],[UTORAK]])*(ROUNDDOWN($B46,10)>=ROUNDDOWN(ListaČasova[VREME POČETKA],10))*($B46<=ListaČasova[VREME ZAVRŠETKA]),ListaČasova[JEDINSTVENI]),ListaČasova[JEDINSTVENI],0),2),0)","v":0},{"$f":"IFERROR(INDEX(ListaČasova[],MATCH(SUMPRODUCT((ListaČasova[DAN]=RasporedČasova[[#Headers],[SREDA]])*(ROUNDDOWN($B46,10)>=ROUNDDOWN(ListaČasova[VREME POČETKA],10))*($B46<=ListaČasova[VREME ZAVRŠETKA]),ListaČasova[JEDINSTVENI]),ListaČasova[JEDINSTVENI],0),2),0)","v":0},{"$f":"IFERROR(INDEX(ListaČasova[],MATCH(SUMPRODUCT((ListaČasova[DAN]=RasporedČasova[[#Headers],[ČETVRTAK]])*(ROUNDDOWN($B46,10)>=ROUNDDOWN(ListaČasova[VREME POČETKA],10))*($B46<=ListaČasova[VREME ZAVRŠETKA]),ListaČasova[JEDINSTVENI]),ListaČasova[JEDINSTVENI],0),2),0)","v":0},{"$f":"IFERROR(INDEX(ListaČasova[],MATCH(SUMPRODUCT((ListaČasova[DAN]=RasporedČasova[[#Headers],[PETAK]])*(ROUNDDOWN($B46,10)>=ROUNDDOWN(ListaČasova[VREME POČETKA],10))*($B46<=ListaČasova[VREME ZAVRŠETKA]),ListaČasova[JEDINSTVENI]),ListaČasova[JEDINSTVENI],0),2),0)","v":0},{"$f":"IFERROR(INDEX(ListaČasova[],MATCH(SUMPRODUCT((ListaČasova[DAN]=RasporedČasova[[#Headers],[SUBOTA]])*(ROUNDDOWN($B46,10)>=ROUNDDOWN(ListaČasova[VREME POČETKA],10))*($B46<=ListaČasova[VREME ZAVRŠETKA]),ListaČasova[JEDINSTVENI]),ListaČasova[JEDINSTVENI],0),2),0)","v":0}]
[null,"18:45:00",{"$f":"IFERROR(INDEX(ListaČasova[],MATCH(SUMPRODUCT((ListaČasova[DAN]=RasporedČasova[[#Headers],[NEDELJA]])*(ROUNDDOWN($B47,10)>=ROUNDDOWN(ListaČasova[VREME POČETKA],10))*($B47<=ListaČasova[VREME ZAVRŠETKA]),ListaČasova[JEDINSTVENI]),ListaČasova[JEDINSTVENI],0),2),0)","v":0},{"$f":"IFERROR(INDEX(ListaČasova[],MATCH(SUMPRODUCT((ListaČasova[DAN]=RasporedČasova[[#Headers],[PONEDELJAK]])*(ROUNDDOWN($B47,10)>=ROUNDDOWN(ListaČasova[VREME POČETKA],10))*($B47<=ListaČasova[VREME ZAVRŠETKA]),ListaČasova[JEDINSTVENI]),ListaČasova[JEDINSTVENI],0),2),0)","v":0},{"$f":"IFERROR(INDEX(ListaČasova[],MATCH(SUMPRODUCT((ListaČasova[DAN]=RasporedČasova[[#Headers],[UTORAK]])*(ROUNDDOWN($B47,10)>=ROUNDDOWN(ListaČasova[VREME POČETKA],10))*($B47<=ListaČasova[VREME ZAVRŠETKA]),ListaČasova[JEDINSTVENI]),ListaČasova[JEDINSTVENI],0),2),0)","v":0},{"$f":"IFERROR(INDEX(ListaČasova[],MATCH(SUMPRODUCT((ListaČasova[DAN]=RasporedČasova[[#Headers],[SREDA]])*(ROUNDDOWN($B47,10)>=ROUNDDOWN(ListaČasova[VREME POČETKA],10))*($B47<=ListaČasova[VREME ZAVRŠETKA]),ListaČasova[JEDINSTVENI]),ListaČasova[JEDINSTVENI],0),2),0)","v":0},{"$f":"IFERROR(INDEX(ListaČasova[],MATCH(SUMPRODUCT((ListaČasova[DAN]=RasporedČasova[[#Headers],[ČETVRTAK]])*(ROUNDDOWN($B47,10)>=ROUNDDOWN(ListaČasova[VREME POČETKA],10))*($B47<=ListaČasova[VREME ZAVRŠETKA]),ListaČasova[JEDINSTVENI]),ListaČasova[JEDINSTVENI],0),2),0)","v":0},{"$f":"IFERROR(INDEX(ListaČasova[],MATCH(SUMPRODUCT((ListaČasova[DAN]=RasporedČasova[[#Headers],[PETAK]])*(ROUNDDOWN($B47,10)>=ROUNDDOWN(ListaČasova[VREME POČETKA],10))*($B47<=ListaČasova[VREME ZAVRŠETKA]),ListaČasova[JEDINSTVENI]),ListaČasova[JEDINSTVENI],0),2),0)","v":0},{"$f":"IFERROR(INDEX(ListaČasova[],MATCH(SUMPRODUCT((ListaČasova[DAN]=RasporedČasova[[#Headers],[SUBOTA]])*(ROUNDDOWN($B47,10)>=ROUNDDOWN(ListaČasova[VREME POČETKA],10))*($B47<=ListaČasova[VREME ZAVRŠETKA]),ListaČasova[JEDINSTVENI]),ListaČasova[JEDINSTVENI],0),2),0)","v":0}]
[null,"19:00:00",{"$f":"IFERROR(INDEX(ListaČasova[],MATCH(SUMPRODUCT((ListaČasova[DAN]=RasporedČasova[[#Headers],[NEDELJA]])*(ROUNDDOWN($B48,10)>=ROUNDDOWN(ListaČasova[VREME POČETKA],10))*($B48<=ListaČasova[VREME ZAVRŠETKA]),ListaČasova[JEDINSTVENI]),ListaČasova[JEDINSTVENI],0),2),0)","v":0},{"$f":"IFERROR(INDEX(ListaČasova[],MATCH(SUMPRODUCT((ListaČasova[DAN]=RasporedČasova[[#Headers],[PONEDELJAK]])*(ROUNDDOWN($B48,10)>=ROUNDDOWN(ListaČasova[VREME POČETKA],10))*($B48<=ListaČasova[VREME ZAVRŠETKA]),ListaČasova[JEDINSTVENI]),ListaČasova[JEDINSTVENI],0),2),0)","v":0},{"$f":"IFERROR(INDEX(ListaČasova[],MATCH(SUMPRODUCT((ListaČasova[DAN]=RasporedČasova[[#Headers],[UTORAK]])*(ROUNDDOWN($B48,10)>=ROUNDDOWN(ListaČasova[VREME POČETKA],10))*($B48<=ListaČasova[VREME ZAVRŠETKA]),ListaČasova[JEDINSTVENI]),ListaČasova[JEDINSTVENI],0),2),0)","v":0},{"$f":"IFERROR(INDEX(ListaČasova[],MATCH(SUMPRODUCT((ListaČasova[DAN]=RasporedČasova[[#Headers],[SREDA]])*(ROUNDDOWN($B48,10)>=ROUNDDOWN(ListaČasova[VREME POČETKA],10))*($B48<=ListaČasova[VREME ZAVRŠETKA]),ListaČasova[JEDINSTVENI]),ListaČasova[JEDINSTVENI],0),2),0)","v":0},{"$f":"IFERROR(INDEX(ListaČasova[],MATCH(SUMPRODUCT((ListaČasova[DAN]=RasporedČasova[[#Headers],[ČETVRTAK]])*(ROUNDDOWN($B48,10)>=ROUNDDOWN(ListaČasova[VREME POČETKA],10))*($B48<=ListaČasova[VREME ZAVRŠETKA]),ListaČasova[JEDINSTVENI]),ListaČasova[JEDINSTVENI],0),2),0)","v":0},{"$f":"IFERROR(INDEX(ListaČasova[],MATCH(SUMPRODUCT((ListaČasova[DAN]=RasporedČasova[[#Headers],[PETAK]])*(ROUNDDOWN($B48,10)>=ROUNDDOWN(ListaČasova[VREME POČETKA],10))*($B48<=ListaČasova[VREME ZAVRŠETKA]),ListaČasova[JEDINSTVENI]),ListaČasova[JEDINSTVENI],0),2),0)","v":0},{"$f":"IFERROR(INDEX(ListaČasova[],MATCH(SUMPRODUCT((ListaČasova[DAN]=RasporedČasova[[#Headers],[SUBOTA]])*(ROUNDDOWN($B48,10)>=ROUNDDOWN(ListaČasova[VREME POČETKA],10))*($B48<=ListaČasova[VREME ZAVRŠETKA]),ListaČasova[JEDINSTVENI]),ListaČasova[JEDINSTVENI],0),2),0)","v":0}]
[null,"19:15:00",{"$f":"IFERROR(INDEX(ListaČasova[],MATCH(SUMPRODUCT((ListaČasova[DAN]=RasporedČasova[[#Headers],[NEDELJA]])*(ROUNDDOWN($B49,10)>=ROUNDDOWN(ListaČasova[VREME POČETKA],10))*($B49<=ListaČasova[VREME ZAVRŠETKA]),ListaČasova[JEDINSTVENI]),ListaČasova[JEDINSTVENI],0),2),0)","v":0},{"$f":"IFERROR(INDEX(ListaČasova[],MATCH(SUMPRODUCT((ListaČasova[DAN]=RasporedČasova[[#Headers],[PONEDELJAK]])*(ROUNDDOWN($B49,10)>=ROUNDDOWN(ListaČasova[VREME POČETKA],10))*($B49<=ListaČasova[VREME ZAVRŠETKA]),ListaČasova[JEDINSTVENI]),ListaČasova[JEDINSTVENI],0),2),0)","v":0},{"$f":"IFERROR(INDEX(ListaČasova[],MATCH(SUMPRODUCT((ListaČasova[DAN]=RasporedČasova[[#Headers],[UTORAK]])*(ROUNDDOWN($B49,10)>=ROUNDDOWN(ListaČasova[VREME POČETKA],10))*($B49<=ListaČasova[VREME ZAVRŠETKA]),ListaČasova[JEDINSTVENI]),ListaČasova[JEDINSTVENI],0),2),0)","v":0},{"$f":"IFERROR(INDEX(ListaČasova[],MATCH(SUMPRODUCT((ListaČasova[DAN]=RasporedČasova[[#Headers],[SREDA]])*(ROUNDDOWN($B49,10)>=ROUNDDOWN(ListaČasova[VREME POČETKA],10))*($B49<=ListaČasova[VREME ZAVRŠETKA]),ListaČasova[JEDINSTVENI]),ListaČasova[JEDINSTVENI],0),2),0)","v":0},{"$f":"IFERROR(INDEX(ListaČasova[],MATCH(SUMPRODUCT((ListaČasova[DAN]=RasporedČasova[[#Headers],[ČETVRTAK]])*(ROUNDDOWN($B49,10)>=ROUNDDOWN(ListaČasova[VREME POČETKA],10))*($B49<=ListaČasova[VREME ZAVRŠETKA]),ListaČasova[JEDINSTVENI]),ListaČasova[JEDINSTVENI],0),2),0)","v":0},{"$f":"IFERROR(INDEX(ListaČasova[],MATCH(SUMPRODUCT((ListaČasova[DAN]=RasporedČasova[[#Headers],[PETAK]])*(ROUNDDOWN($B49,10)>=ROUNDDOWN(ListaČasova[VREME POČETKA],10))*($B49<=ListaČasova[VREME ZAVRŠETKA]),ListaČasova[JEDINSTVENI]),ListaČasova[JEDINSTVENI],0),2),0)","v":0},{"$f":"IFERROR(INDEX(ListaČasova[],MATCH(SUMPRODUCT((ListaČasova[DAN]=RasporedČasova[[#Headers],[SUBOTA]])*(ROUNDDOWN($B49,10)>=ROUNDDOWN(ListaČasova[VREME POČETKA],10))*($B49<=ListaČasova[VREME ZAVRŠETKA]),ListaČasova[JEDINSTVENI]),ListaČasova[JEDINSTVENI],0),2),0)","v":0}]
[null,"19:30:00",{"$f":"IFERROR(INDEX(ListaČasova[],MATCH(SUMPRODUCT((ListaČasova[DAN]=RasporedČasova[[#Headers],[NEDELJA]])*(ROUNDDOWN($B50,10)>=ROUNDDOWN(ListaČasova[VREME POČETKA],10))*($B50<=ListaČasova[VREME ZAVRŠETKA]),ListaČasova[JEDINSTVENI]),ListaČasova[JEDINSTVENI],0),2),0)","v":0},{"$f":"IFERROR(INDEX(ListaČasova[],MATCH(SUMPRODUCT((ListaČasova[DAN]=RasporedČasova[[#Headers],[PONEDELJAK]])*(ROUNDDOWN($B50,10)>=ROUNDDOWN(ListaČasova[VREME POČETKA],10))*($B50<=ListaČasova[VREME ZAVRŠETKA]),ListaČasova[JEDINSTVENI]),ListaČasova[JEDINSTVENI],0),2),0)","v":0},{"$f":"IFERROR(INDEX(ListaČasova[],MATCH(SUMPRODUCT((ListaČasova[DAN]=RasporedČasova[[#Headers],[UTORAK]])*(ROUNDDOWN($B50,10)>=ROUNDDOWN(ListaČasova[VREME POČETKA],10))*($B50<=ListaČasova[VREME ZAVRŠETKA]),ListaČasova[JEDINSTVENI]),ListaČasova[JEDINSTVENI],0),2),0)","v":0},{"$f":"IFERROR(INDEX(ListaČasova[],MATCH(SUMPRODUCT((ListaČasova[DAN]=RasporedČasova[[#Headers],[SREDA]])*(ROUNDDOWN($B50,10)>=ROUNDDOWN(ListaČasova[VREME POČETKA],10))*($B50<=ListaČasova[VREME ZAVRŠETKA]),ListaČasova[JEDINSTVENI]),ListaČasova[JEDINSTVENI],0),2),0)","v":0},{"$f":"IFERROR(INDEX(ListaČasova[],MATCH(SUMPRODUCT((ListaČasova[DAN]=RasporedČasova[[#Headers],[ČETVRTAK]])*(ROUNDDOWN($B50,10)>=ROUNDDOWN(ListaČasova[VREME POČETKA],10))*($B50<=ListaČasova[VREME ZAVRŠETKA]),ListaČasova[JEDINSTVENI]),ListaČasova[JEDINSTVENI],0),2),0)","v":0},{"$f":"IFERROR(INDEX(ListaČasova[],MATCH(SUMPRODUCT((ListaČasova[DAN]=RasporedČasova[[#Headers],[PETAK]])*(ROUNDDOWN($B50,10)>=ROUNDDOWN(ListaČasova[VREME POČETKA],10))*($B50<=ListaČasova[VREME ZAVRŠETKA]),ListaČasova[JEDINSTVENI]),ListaČasova[JEDINSTVENI],0),2),0)","v":0},{"$f":"IFERROR(INDEX(ListaČasova[],MATCH(SUMPRODUCT((ListaČasova[DAN]=RasporedČasova[[#Headers],[SUBOTA]])*(ROUNDDOWN($B50,10)>=ROUNDDOWN(ListaČasova[VREME POČETKA],10))*($B50<=ListaČasova[VREME ZAVRŠETKA]),ListaČasova[JEDINSTVENI]),ListaČasova[JEDINSTVENI],0),2),0)","v":0}]
[null,"19:45:00",{"$f":"IFERROR(INDEX(ListaČasova[],MATCH(SUMPRODUCT((ListaČasova[DAN]=RasporedČasova[[#Headers],[NEDELJA]])*(ROUNDDOWN($B51,10)>=ROUNDDOWN(ListaČasova[VREME POČETKA],10))*($B51<=ListaČasova[VREME ZAVRŠETKA]),ListaČasova[JEDINSTVENI]),ListaČasova[JEDINSTVENI],0),2),0)","v":0},{"$f":"IFERROR(INDEX(ListaČasova[],MATCH(SUMPRODUCT((ListaČasova[DAN]=RasporedČasova[[#Headers],[PONEDELJAK]])*(ROUNDDOWN($B51,10)>=ROUNDDOWN(ListaČasova[VREME POČETKA],10))*($B51<=ListaČasova[VREME ZAVRŠETKA]),ListaČasova[JEDINSTVENI]),ListaČasova[JEDINSTVENI],0),2),0)","v":0},{"$f":"IFERROR(INDEX(ListaČasova[],MATCH(SUMPRODUCT((ListaČasova[DAN]=RasporedČasova[[#Headers],[UTORAK]])*(ROUNDDOWN($B51,10)>=ROUNDDOWN(ListaČasova[VREME POČETKA],10))*($B51<=ListaČasova[VREME ZAVRŠETKA]),ListaČasova[JEDINSTVENI]),ListaČasova[JEDINSTVENI],0),2),0)","v":0},{"$f":"IFERROR(INDEX(ListaČasova[],MATCH(SUMPRODUCT((ListaČasova[DAN]=RasporedČasova[[#Headers],[SREDA]])*(ROUNDDOWN($B51,10)>=ROUNDDOWN(ListaČasova[VREME POČETKA],10))*($B51<=ListaČasova[VREME ZAVRŠETKA]),ListaČasova[JEDINSTVENI]),ListaČasova[JEDINSTVENI],0),2),0)","v":0},{"$f":"IFERROR(INDEX(ListaČasova[],MATCH(SUMPRODUCT((ListaČasova[DAN]=RasporedČasova[[#Headers],[ČETVRTAK]])*(ROUNDDOWN($B51,10)>=ROUNDDOWN(ListaČasova[VREME POČETKA],10))*($B51<=ListaČasova[VREME ZAVRŠETKA]),ListaČasova[JEDINSTVENI]),ListaČasova[JEDINSTVENI],0),2),0)","v":0},{"$f":"IFERROR(INDEX(ListaČasova[],MATCH(SUMPRODUCT((ListaČasova[DAN]=RasporedČasova[[#Headers],[PETAK]])*(ROUNDDOWN($B51,10)>=ROUNDDOWN(ListaČasova[VREME POČETKA],10))*($B51<=ListaČasova[VREME ZAVRŠETKA]),ListaČasova[JEDINSTVENI]),ListaČasova[JEDINSTVENI],0),2),0)","v":0},{"$f":"IFERROR(INDEX(ListaČasova[],MATCH(SUMPRODUCT((ListaČasova[DAN]=RasporedČasova[[#Headers],[SUBOTA]])*(ROUNDDOWN($B51,10)>=ROUNDDOWN(ListaČasova[VREME POČETKA],10))*($B51<=ListaČasova[VREME ZAVRŠETKA]),ListaČasova[JEDINSTVENI]),ListaČasova[JEDINSTVENI],0),2),0)","v":0}]
[null,"20:00:00",{"$f":"IFERROR(INDEX(ListaČasova[],MATCH(SUMPRODUCT((ListaČasova[DAN]=RasporedČasova[[#Headers],[NEDELJA]])*(ROUNDDOWN($B52,10)>=ROUNDDOWN(ListaČasova[VREME POČETKA],10))*($B52<=ListaČasova[VREME ZAVRŠETKA]),ListaČasova[JEDINSTVENI]),ListaČasova[JEDINSTVENI],0),2),0)","v":0},{"$f":"IFERROR(INDEX(ListaČasova[],MATCH(SUMPRODUCT((ListaČasova[DAN]=RasporedČasova[[#Headers],[PONEDELJAK]])*(ROUNDDOWN($B52,10)>=ROUNDDOWN(ListaČasova[VREME POČETKA],10))*($B52<=ListaČasova[VREME ZAVRŠETKA]),ListaČasova[JEDINSTVENI]),ListaČasova[JEDINSTVENI],0),2),0)","v":0},{"$f":"IFERROR(INDEX(ListaČasova[],MATCH(SUMPRODUCT((ListaČasova[DAN]=RasporedČasova[[#Headers],[UTORAK]])*(ROUNDDOWN($B52,10)>=ROUNDDOWN(ListaČasova[VREME POČETKA],10))*($B52<=ListaČasova[VREME ZAVRŠETKA]),ListaČasova[JEDINSTVENI]),ListaČasova[JEDINSTVENI],0),2),0)","v":0},{"$f":"IFERROR(INDEX(ListaČasova[],MATCH(SUMPRODUCT((ListaČasova[DAN]=RasporedČasova[[#Headers],[SREDA]])*(ROUNDDOWN($B52,10)>=ROUNDDOWN(ListaČasova[VREME POČETKA],10))*($B52<=ListaČasova[VREME ZAVRŠETKA]),ListaČasova[JEDINSTVENI]),ListaČasova[JEDINSTVENI],0),2),0)","v":0},{"$f":"IFERROR(INDEX(ListaČasova[],MATCH(SUMPRODUCT((ListaČasova[DAN]=RasporedČasova[[#Headers],[ČETVRTAK]])*(ROUNDDOWN($B52,10)>=ROUNDDOWN(ListaČasova[VREME POČETKA],10))*($B52<=ListaČasova[VREME ZAVRŠETKA]),ListaČasova[JEDINSTVENI]),ListaČasova[JEDINSTVENI],0),2),0)","v":0},{"$f":"IFERROR(INDEX(ListaČasova[],MATCH(SUMPRODUCT((ListaČasova[DAN]=RasporedČasova[[#Headers],[PETAK]])*(ROUNDDOWN($B52,10)>=ROUNDDOWN(ListaČasova[VREME POČETKA],10))*($B52<=ListaČasova[VREME ZAVRŠETKA]),ListaČasova[JEDINSTVENI]),ListaČasova[JEDINSTVENI],0),2),0)","v":0},{"$f":"IFERROR(INDEX(ListaČasova[],MATCH(SUMPRODUCT((ListaČasova[DAN]=RasporedČasova[[#Headers],[SUBOTA]])*(ROUNDDOWN($B52,10)>=ROUNDDOWN(ListaČasova[VREME POČETKA],10))*($B52<=ListaČasova[VREME ZAVRŠETKA]),ListaČasova[JEDINSTVENI]),ListaČasova[JEDINSTVENI],0),2),0)","v":0}]
[null,"20:15:00",{"$f":"IFERROR(INDEX(ListaČasova[],MATCH(SUMPRODUCT((ListaČasova[DAN]=RasporedČasova[[#Headers],[NEDELJA]])*(ROUNDDOWN($B53,10)>=ROUNDDOWN(ListaČasova[VREME POČETKA],10))*($B53<=ListaČasova[VREME ZAVRŠETKA]),ListaČasova[JEDINSTVENI]),ListaČasova[JEDINSTVENI],0),2),0)","v":0},{"$f":"IFERROR(INDEX(ListaČasova[],MATCH(SUMPRODUCT((ListaČasova[DAN]=RasporedČasova[[#Headers],[PONEDELJAK]])*(ROUNDDOWN($B53,10)>=ROUNDDOWN(ListaČasova[VREME POČETKA],10))*($B53<=ListaČasova[VREME ZAVRŠETKA]),ListaČasova[JEDINSTVENI]),ListaČasova[JEDINSTVENI],0),2),0)","v":0},{"$f":"IFERROR(INDEX(ListaČasova[],MATCH(SUMPRODUCT((ListaČasova[DAN]=RasporedČasova[[#Headers],[UTORAK]])*(ROUNDDOWN($B53,10)>=ROUNDDOWN(ListaČasova[VREME POČETKA],10))*($B53<=ListaČasova[VREME ZAVRŠETKA]),ListaČasova[JEDINSTVENI]),ListaČasova[JEDINSTVENI],0),2),0)","v":0},{"$f":"IFERROR(INDEX(ListaČasova[],MATCH(SUMPRODUCT((ListaČasova[DAN]=RasporedČasova[[#Headers],[SREDA]])*(ROUNDDOWN($B53,10)>=ROUNDDOWN(ListaČasova[VREME POČETKA],10))*($B53<=ListaČasova[VREME ZAVRŠETKA]),ListaČasova[JEDINSTVENI]),ListaČasova[JEDINSTVENI],0),2),0)","v":0},{"$f":"IFERROR(INDEX(ListaČasova[],MATCH(SUMPRODUCT((ListaČasova[DAN]=RasporedČasova[[#Headers],[ČETVRTAK]])*(ROUNDDOWN($B53,10)>=ROUNDDOWN(ListaČasova[VREME POČETKA],10))*($B53<=ListaČasova[VREME ZAVRŠETKA]),ListaČasova[JEDINSTVENI]),ListaČasova[JEDINSTVENI],0),2),0)","v":0},{"$f":"IFERROR(INDEX(ListaČasova[],MATCH(SUMPRODUCT((ListaČasova[DAN]=RasporedČasova[[#Headers],[PETAK]])*(ROUNDDOWN($B53,10)>=ROUNDDOWN(ListaČasova[VREME POČETKA],10))*($B53<=ListaČasova[VREME ZAVRŠETKA]),ListaČasova[JEDINSTVENI]),ListaČasova[JEDINSTVENI],0),2),0)","v":0},{"$f":"IFERROR(INDEX(ListaČasova[],MATCH(SUMPRODUCT((ListaČasova[DAN]=RasporedČasova[[#Headers],[SUBOTA]])*(ROUNDDOWN($B53,10)>=ROUNDDOWN(ListaČasova[VREME POČETKA],10))*($B53<=ListaČasova[VREME ZAVRŠETKA]),ListaČasova[JEDINSTVENI]),ListaČasova[JEDINSTVENI],0),2),0)","v":0}]
[null,"20:30:00",{"$f":"IFERROR(INDEX(ListaČasova[],MATCH(SUMPRODUCT((ListaČasova[DAN]=RasporedČasova[[#Headers],[NEDELJA]])*(ROUNDDOWN($B54,10)>=ROUNDDOWN(ListaČasova[VREME POČETKA],10))*($B54<=ListaČasova[VREME ZAVRŠETKA]),ListaČasova[JEDINSTVENI]),ListaČasova[JEDINSTVENI],0),2),0)","v":0},{"$f":"IFERROR(INDEX(ListaČasova[],MATCH(SUMPRODUCT((ListaČasova[DAN]=RasporedČasova[[#Headers],[PONEDELJAK]])*(ROUNDDOWN($B54,10)>=ROUNDDOWN(ListaČasova[VREME POČETKA],10))*($B54<=ListaČasova[VREME ZAVRŠETKA]),ListaČasova[JEDINSTVENI]),ListaČasova[JEDINSTVENI],0),2),0)","v":0},{"$f":"IFERROR(INDEX(ListaČasova[],MATCH(SUMPRODUCT((ListaČasova[DAN]=RasporedČasova[[#Headers],[UTORAK]])*(ROUNDDOWN($B54,10)>=ROUNDDOWN(ListaČasova[VREME POČETKA],10))*($B54<=ListaČasova[VREME ZAVRŠETKA]),ListaČasova[JEDINSTVENI]),ListaČasova[JEDINSTVENI],0),2),0)","v":0},{"$f":"IFERROR(INDEX(ListaČasova[],MATCH(SUMPRODUCT((ListaČasova[DAN]=RasporedČasova[[#Headers],[SREDA]])*(ROUNDDOWN($B54,10)>=ROUNDDOWN(ListaČasova[VREME POČETKA],10))*($B54<=ListaČasova[VREME ZAVRŠETKA]),ListaČasova[JEDINSTVENI]),ListaČasova[JEDINSTVENI],0),2),0)","v":0},{"$f":"IFERROR(INDEX(ListaČasova[],MATCH(SUMPRODUCT((ListaČasova[DAN]=RasporedČasova[[#Headers],[ČETVRTAK]])*(ROUNDDOWN($B54,10)>=ROUNDDOWN(ListaČasova[VREME POČETKA],10))*($B54<=ListaČasova[VREME ZAVRŠETKA]),ListaČasova[JEDINSTVENI]),ListaČasova[JEDINSTVENI],0),2),0)","v":0},{"$f":"IFERROR(INDEX(ListaČasova[],MATCH(SUMPRODUCT((ListaČasova[DAN]=RasporedČasova[[#Headers],[PETAK]])*(ROUNDDOWN($B54,10)>=ROUNDDOWN(ListaČasova[VREME POČETKA],10))*($B54<=ListaČasova[VREME ZAVRŠETKA]),ListaČasova[JEDINSTVENI]),ListaČasova[JEDINSTVENI],0),2),0)","v":0},{"$f":"IFERROR(INDEX(ListaČasova[],MATCH(SUMPRODUCT((ListaČasova[DAN]=RasporedČasova[[#Headers],[SUBOTA]])*(ROUNDDOWN($B54,10)>=ROUNDDOWN(ListaČasova[VREME POČETKA],10))*($B54<=ListaČasova[VREME ZAVRŠETKA]),ListaČasova[JEDINSTVENI]),ListaČasova[JEDINSTVENI],0),2),0)","v":0}]
[null,"20:45:00",{"$f":"IFERROR(INDEX(ListaČasova[],MATCH(SUMPRODUCT((ListaČasova[DAN]=RasporedČasova[[#Headers],[NEDELJA]])*(ROUNDDOWN($B55,10)>=ROUNDDOWN(ListaČasova[VREME POČETKA],10))*($B55<=ListaČasova[VREME ZAVRŠETKA]),ListaČasova[JEDINSTVENI]),ListaČasova[JEDINSTVENI],0),2),0)","v":0},{"$f":"IFERROR(INDEX(ListaČasova[],MATCH(SUMPRODUCT((ListaČasova[DAN]=RasporedČasova[[#Headers],[PONEDELJAK]])*(ROUNDDOWN($B55,10)>=ROUNDDOWN(ListaČasova[VREME POČETKA],10))*($B55<=ListaČasova[VREME ZAVRŠETKA]),ListaČasova[JEDINSTVENI]),ListaČasova[JEDINSTVENI],0),2),0)","v":0},{"$f":"IFERROR(INDEX(ListaČasova[],MATCH(SUMPRODUCT((ListaČasova[DAN]=RasporedČasova[[#Headers],[UTORAK]])*(ROUNDDOWN($B55,10)>=ROUNDDOWN(ListaČasova[VREME POČETKA],10))*($B55<=ListaČasova[VREME ZAVRŠETKA]),ListaČasova[JEDINSTVENI]),ListaČasova[JEDINSTVENI],0),2),0)","v":0},{"$f":"IFERROR(INDEX(ListaČasova[],MATCH(SUMPRODUCT((ListaČasova[DAN]=RasporedČasova[[#Headers],[SREDA]])*(ROUNDDOWN($B55,10)>=ROUNDDOWN(ListaČasova[VREME POČETKA],10))*($B55<=ListaČasova[VREME ZAVRŠETKA]),ListaČasova[JEDINSTVENI]),ListaČasova[JEDINSTVENI],0),2),0)","v":0},{"$f":"IFERROR(INDEX(ListaČasova[],MATCH(SUMPRODUCT((ListaČasova[DAN]=RasporedČasova[[#Headers],[ČETVRTAK]])*(ROUNDDOWN($B55,10)>=ROUNDDOWN(ListaČasova[VREME POČETKA],10))*($B55<=ListaČasova[VREME ZAVRŠETKA]),ListaČasova[JEDINSTVENI]),ListaČasova[JEDINSTVENI],0),2),0)","v":0},{"$f":"IFERROR(INDEX(ListaČasova[],MATCH(SUMPRODUCT((ListaČasova[DAN]=RasporedČasova[[#Headers],[PETAK]])*(ROUNDDOWN($B55,10)>=ROUNDDOWN(ListaČasova[VREME POČETKA],10))*($B55<=ListaČasova[VREME ZAVRŠETKA]),ListaČasova[JEDINSTVENI]),ListaČasova[JEDINSTVENI],0),2),0)","v":0},{"$f":"IFERROR(INDEX(ListaČasova[],MATCH(SUMPRODUCT((ListaČasova[DAN]=RasporedČasova[[#Headers],[SUBOTA]])*(ROUNDDOWN($B55,10)>=ROUNDDOWN(ListaČasova[VREME POČETKA],10))*($B55<=ListaČasova[VREME ZAVRŠETKA]),ListaČasova[JEDINSTVENI]),ListaČasova[JEDINSTVENI],0),2),0)","v":0}]
[null,"21:00:00",{"$f":"IFERROR(INDEX(ListaČasova[],MATCH(SUMPRODUCT((ListaČasova[DAN]=RasporedČasova[[#Headers],[NEDELJA]])*(ROUNDDOWN($B56,10)>=ROUNDDOWN(ListaČasova[VREME POČETKA],10))*($B56<=ListaČasova[VREME ZAVRŠETKA]),ListaČasova[JEDINSTVENI]),ListaČasova[JEDINSTVENI],0),2),0)","v":0},{"$f":"IFERROR(INDEX(ListaČasova[],MATCH(SUMPRODUCT((ListaČasova[DAN]=RasporedČasova[[#Headers],[PONEDELJAK]])*(ROUNDDOWN($B56,10)>=ROUNDDOWN(ListaČasova[VREME POČETKA],10))*($B56<=ListaČasova[VREME ZAVRŠETKA]),ListaČasova[JEDINSTVENI]),ListaČasova[JEDINSTVENI],0),2),0)","v":0},{"$f":"IFERROR(INDEX(ListaČasova[],MATCH(SUMPRODUCT((ListaČasova[DAN]=RasporedČasova[[#Headers],[UTORAK]])*(ROUNDDOWN($B56,10)>=ROUNDDOWN(ListaČasova[VREME POČETKA],10))*($B56<=ListaČasova[VREME ZAVRŠETKA]),ListaČasova[JEDINSTVENI]),ListaČasova[JEDINSTVENI],0),2),0)","v":0},{"$f":"IFERROR(INDEX(ListaČasova[],MATCH(SUMPRODUCT((ListaČasova[DAN]=RasporedČasova[[#Headers],[SREDA]])*(ROUNDDOWN($B56,10)>=ROUNDDOWN(ListaČasova[VREME POČETKA],10))*($B56<=ListaČasova[VREME ZAVRŠETKA]),ListaČasova[JEDINSTVENI]),ListaČasova[JEDINSTVENI],0),2),0)","v":0},{"$f":"IFERROR(INDEX(ListaČasova[],MATCH(SUMPRODUCT((ListaČasova[DAN]=RasporedČasova[[#Headers],[ČETVRTAK]])*(ROUNDDOWN($B56,10)>=ROUNDDOWN(ListaČasova[VREME POČETKA],10))*($B56<=ListaČasova[VREME ZAVRŠETKA]),ListaČasova[JEDINSTVENI]),ListaČasova[JEDINSTVENI],0),2),0)","v":0},{"$f":"IFERROR(INDEX(ListaČasova[],MATCH(SUMPRODUCT((ListaČasova[DAN]=RasporedČasova[[#Headers],[PETAK]])*(ROUNDDOWN($B56,10)>=ROUNDDOWN(ListaČasova[VREME POČETKA],10))*($B56<=ListaČasova[VREME ZAVRŠETKA]),ListaČasova[JEDINSTVENI]),ListaČasova[JEDINSTVENI],0),2),0)","v":0},{"$f":"IFERROR(INDEX(ListaČasova[],MATCH(SUMPRODUCT((ListaČasova[DAN]=RasporedČasova[[#Headers],[SUBOTA]])*(ROUNDDOWN($B56,10)>=ROUNDDOWN(ListaČasova[VREME POČETKA],10))*($B56<=ListaČasova[VREME ZAVRŠETKA]),ListaČasova[JEDINSTVENI]),ListaČasova[JEDINSTVENI],0),2),0)","v":0}]

{"sheet":"Lista časova","index":1,"n_rows":10,"n_cols":8,"rows_kept":10,"merged":[[0,1,0,5],[0,6,0,7]]}
[null,"LISTA ČASOVA",{"$nulls":4},"Plan časa"]
[null,"ČAS","ID","DAN","LOKACIJA","VREME POČETKA","VREME ZAVRŠETKA","JEDINSTVENI"]
[null,"Tehničko pisanje","TP-121","PONEDELJAK","Zgrada A","13:00:00","14:00:00",{"$f":"ROW()-ROW(ListaČasova[[#Headers],[JEDINSTVENI]])","v":1}]
[null,"Tehničko pisanje","TP-121","SREDA","Zgrada A","13:00:00","14:00:00",{"$f":"ROW()-ROW(ListaČasova[[#Headers],[JEDINSTVENI]])","v":2}]
[null,"Retorika","RT-111","PONEDELJAK","Zgrada B","16:00:00","17:00:00",{"$f":"ROW()-ROW(ListaČasova[[#Headers],[JEDINSTVENI]])","v":3}]
[null,"Zdravlje i fitnes","ZF-295","UTORAK","Zgrada B","11:00:00","12:00:00",{"$f":"ROW()-ROW(ListaČasova[[#Headers],[JEDINSTVENI]])","v":4}]
[null,"Zdravlje i fitnes","ZF-295","ČETVRTAK","Zgrada B","11:00:00","12:00:00",{"$f":"ROW()-ROW(ListaČasova[[#Headers],[JEDINSTVENI]])","v":5}]
[null,"Algebra","MT-113","PONEDELJAK","Zgrada C","08:10:00","09:15:00",{"$f":"ROW()-ROW(ListaČasova[[#Headers],[JEDINSTVENI]])","v":6}]
[null,"Algebra","MT-113","SREDA","Zgrada C","08:10:00","09:15:00",{"$f":"ROW()-ROW(ListaČasova[[#Headers],[JEDINSTVENI]])","v":7}]
[null,"Algebra","MT-113","PETAK","Zgrada C","08:10:00","09:15:00",{"$f":"ROW()-ROW(ListaČasova[[#Headers],[JEDINSTVENI]])","v":8}]